Workbook

Sheet PL Products
A3: PRODUCT PRICE LIST
A4: Extreme Networks Data Communications Contract # AR3230 as of January 2026
A7: Part Number | B7: Product Description | C7: Product List Price | D7: Discount | E7: Contract Price
A8: XA1480 | B8: ExtremeAccess Platform 1480 hardware appliance with 6 10/100/1000Mbps Base-T ports and 2 1/10Gb SFP+ ports includes Fan and 1 12V external power adapter. Power Cord to be ordered separately | C8: $5,128.00 | D8: 38% | E8: =C8-(C8*D8) -> $3,179.36
A9: XA1440 | B9: ExtremeAccess Platform 1440 hardware appliance with 6 10/100/1000Mbps Base-T ports and 2 1/10Gb SFP+ ports includes Fan and 1 12V external power adapter. Power Cord to be ordered separately | C9: $3,845.00 | D9: 38% | E9: =C9-(C9*D9) -> $2,383.90
A10: XA1400-PWR-ADPT | B10: Spare 12V/60W External Power Adapter for XA1440 and XA1480 hardware appliance | C10: $224.00 | D10: 38% | E10: $138.88
A11: XN-2P-RMKIT-XA | B11: Optional two post rack mount kit for ExtremeAccess Platform 1400 models. Includes brackets for front mount of chassis in a two post rack. | C11: $384.00 | D11: 38% | E11: $238.08
A12: AP510e-WR | B12: Dual 5GHz Dual band Sensor radio Dual Radio 802.11ax/ac/abgn 4x44 MIMO Indoor 11ax access point with external antenna ports. Domain EMEA and Rest Of World. | C12: $1,979.00 | D12: 38% | E12: $1,226.98
A13: AP302W-WR | B13: ExtremeCloud IQ Indoor WiFi6 Wallplate 2x2 radios with Dual 5GHz and 4 GE Ethernet ports with POE Out. Integrated light/power sensors BLE. AI/ML green mode. Internal antennas. Domain EMEA and Rest Of World | C13: $574.00 | D13: 38% | E13: $355.88
A14: AP302W-FCC | B14: ExtremeCloud IQ Indoor WiFi6 Wallplate 2x2 radios with Dual 5GHz and 4 GE Ethernet ports with POE Out. Integrated light/power sensors BLE. AI/ML green mode. Internal antennas. Domain US | C14: $574.00 | D14: 38% | E14: $355.88
A15: AP410e-FCC | B15: Tri Radio 802.11ax - 4x44 + 2x22 Full time 2x22 Sensor Indoor External Antenna Access Point. Domain US and Puerto Rico | C15: $1,533.00 | D15: 38% | E15: $950.46
A16: AP410e-WR | B16: Tri Radio 802.11ax - 4x44 + 2x22 Full time 2x22 Sensor Indoor External Antenna Access Point. Domain EMEA Rest of World | C16: $1,533.00 | D16: 38% | E16: $950.46
A17: AP410i-FCC | B17: Tri Radio 802.11ax - 4x44 + 2x22 Full time 2x22 Sensor Indoor Internal Antenna Access Point. Domain US and Puerto Rico | C17: $1,533.00 | D17: 38% | E17: $950.46
A18: AP410i-WR | B18: Tri Radio 802.11ax - 4x44 + 2x22 Full time 2x22 Sensor Indoor Internal Antenna Access Point. Domain EMEA Rest of World | C18: $1,533.00 | D18: 38% | E18: $950.46
A19: AP410e-CAN | B19: Tri Radio 802.11ax - 4x44 + 2x22 Full time 2x22 Sensor Indoor External Antenna Access Point. Domain Canada | C19: $1,533.00 | D19: 38% | E19: $950.46
A20: AP410i-CAN | B20: Tri Radio 802.11ax - 4x44 + 2x22 Full time 2x22 Sensor Indoor Internal Antenna Access Point. Domain Canada | C20: $1,533.00 | D20: 38% | E20: $950.46
A21: AP410i-IL | B21: Tri Radio 802.11ax - 4x44 + 2x22 Full time 2x22 Sensor Indoor Internal Antenna Access Point. Domain Israel | C21: $1,533.00 | D21: 38% | E21: $950.46
A22: AP505i-FCC | B22: Dual Radio 802.11ax/ac/abgn 4x44 MIMO Indoor 11ax access point. Internal Antenna. Domain US Puerto Rico and Colombia | C22: $1,483.00 | D22: 38% | E22: $919.46
A23: AP505i-FCC-TAA | B23: Dual Radio 802.11ax/ac/abgn 4x44 MIMO Indoor 11ax access point. Internal Antenna. Domain US Puerto Rico and Colombia. TAA Compliant | C23: $1,556.00 | D23: 38% | E23: $964.72
A24: AP505i-WR | B24: Dual Radio 802.11ax/ac/abgn 4x44 MIMO Indoor 11ax access point. Internal Antenna. Domain EMEA and Rest Of World | C24: $1,556.00 | D24: 38% | E24: $964.72
A25: AP510e-FCC | B25: Dual 5GHz Dual band Sensor radio Dual Radio 802.11ax/ac/abgn 4x44 MIMO Indoor 11ax access point with external antenna ports. Domain US Puerto Rico and Colombia. | C25: $2,076.00 | D25: 38% | E25: $1,287.12
A26: AP510e-FCC-TAA | B26: Dual 5GHz Dual band Sensor radio Dual Radio 802.11ax/ac/abgn 4x44 MIMO Indoor 11ax access point with external antenna ports. Domain US Puerto Rico and Colombia. TAA Compliant. | C26: $2,076.00 | D26: 38% | E26: $1,287.12
A27: AP302W-EG | B27: ExtremeCloud IQ Indoor WiFi6 Wallplate 2x2 radios with Dual 5GHz and 4 GE Ethernet ports with POE Out. Integrated light/power sensors BLE. AI/ML green mode. Internal antennas. Domain Egypt | C27: $631.00 | D27: 38% | E27: $391.22
A28: AP510i-FCC | B28: Dual 5GHz Dual band Sensor radio Dual Radio 802.11ax/ac/abgn 4x44 MIMO Indoor 11ax access point. Internal Antenna. Domain US Puerto Rico and Colombia | C28: $1,946.00 | D28: 38% | E28: $1,206.52
A29: AP510i-FCC-TAA | B29: Dual 5GHz Dual band Sensor radio Dual Radio 802.11ax/ac/abgn 4x44 MIMO Indoor 11ax access point. Internal Antenna. Domain US Puerto Rico and Colombia. TAA Compliant | C29: $1,946.00 | D29: 38% | E29: $1,206.52
A30: AP510i-WR | B30: Dual 5GHz Dual band Sensor radio Dual Radio 802.11ax/ac/abgn 4x44 MIMO Indoor 11ax access point. Internal Antenna. Domain EMEA and Rest Of World | C30: $1,946.00 | D30: 38% | E30: $1,206.52
A31: AP310e-FCC | B31: Dual Radio 802.11ax - 2x22 Dual 5G Indoor External Antenna Access Point. Domain US and Puerto Rico | C31: $863.00 | D31: 38% | E31: $535.06
A32: AP310e-WR | B32: Dual Radio 802.11ax - 2x22 Dual 5G Indoor External Antenna Access Point. Domain EMEA Rest of World | C32: $863.00 | D32: 38% | E32: $535.06
A33: AP310i-FCC | B33: Dual Radio 802.11ax - 2x22 Dual 5G Indoor Internal Antenna Access Point. Domain US and Puerto Rico | C33: $863.00 | D33: 38% | E33: $535.06
A34: AP310i-WR | B34: Dual Radio 802.11ax - 2x22 Dual 5G Indoor Internal Antenna Access Point. Domain EMEA Rest of World | C34: $863.00 | D34: 38% | E34: $535.06
A35: AP310e-CAN | B35: Dual Radio 802.11ax - 2x22 Dual 5G Indoor External Antenna Access Point. Domain Canada | C35: $863.00 | D35: 38% | E35: $535.06
A36: AP310i-CAN | B36: Dual Radio 802.11ax - 2x22 Dual 5G Indoor Internal Antenna Access Point. Domain Canada | C36: $863.00 | D36: 38% | E36: $535.06
A37: AP310e-IL | B37: Dual Radio 802.11ax - 2x22 Dual 5G Indoor External Antenna Access Point. Domain Israel | C37: $863.00 | D37: 38% | E37: $535.06
A38: AP310i-IL | B38: Dual Radio 802.11ax - 2x22 Dual 5G Indoor Internal Antenna Access Point. Domain Israel | C38: $863.00 | D38: 38% | E38: $535.06
A39: AP302W-CAN | B39: ExtremeCloud IQ Indoor WiFi6 Wallplate 2x2 radios with Dual 5GHz and 4 GE Ethernet ports with POE Out. Integrated light/power sensors BLE. AI/ML green mode. Internal antennas. Domain Canada | C39: $574.00 | D39: 38% | E39: $355.88
A40: 37219 | B40: PWR 12VDC 3A 2.5mm x 5.5mm connector. Global AC plugs included | C40: $91.00 | D40: 38% | E40: $56.42
A41: AO-DD19017N | B41: PT to PT 5.15-5.875 GHZ 19.5 dBi Dual Polarized Directional Antennna 2x2 5.15-5.875GHz 19.5dBi Az/El 17/17deg | C41: $1,234.00 | D41: 38% | E41: $765.08
A42: AI-DQ04360S | B42: AI-DQ04360S Dipole Omni Array 5.5dBi/6dBi dual band outdoor with quad feed 36 leads and RPSMA connectors | C42: $732.00 | D42: 38% | E42: $453.84
A43: AP360i-FCC | B43: Dual Radio 802.11ax - 2x22 Dual 5G Outdoor Internal Antenna Access Point. Domain US and Puerto Rico | C43: $1,261.00 | D43: 38% | E43: $781.82
A44: AP360i-WR | B44: Dual Radio 802.11ax - 2x22 Dual 5G Outdoor Internal Antenna Access Point. Domain EMEA Rest of World | C44: $1,261.00 | D44: 38% | E44: $781.82
A45: AP360e-CAN | B45: Dual Radio 802.11ax - 2x22 Dual 5G Outdoor External Antenna Access Point. Domain Canada | C45: $1,261.00 | D45: 38% | E45: $781.82
A46: AP360i-CAN | B46: Dual Radio 802.11ax - 2x22 Dual 5G Outdoor Internal Antenna Access Point. Domain Canada | C46: $1,261.00 | D46: 38% | E46: $781.82
A47: AP360e-IL | B47: Dual Radio 802.11ax - 2x22 Dual 5G Outdoor External Antenna Access Point. Domain Israel | C47: $1,261.00 | D47: 38% | E47: $781.82
A48: AP560h-FCC | B48: Dual 5GHz Dual band Sensor radio Dual Radio 802.11ax/ac/abgn 4x44 MIMO Outdoor 11ax access point. Internal 30deg/70deg Panel Antenna. Domain US and Colombia | C48: $4,786.00 | D48: 38% | E48: $2,967.32
A49: AP560i-FCC | B49: Dual 5GHz Dual band Sensor radio Dual Radio 802.11ax/ac/abgn 4x44 MIMO Outdoor 11ax access point. Internal Antenna. Domain US and Colombia | C49: $3,379.00 | D49: 38% | E49: $2,094.98
A50: AP560h-WR | B50: Dual 5GHz Dual band Sensor radio Dual Radio 802.11ax/ac/abgn 4x44 MIMO Outdoor 11ax access point. Internal 30deg/70deg Panel Antenna. Domain Canada EMEA and Singapore | C50: $5,461.00 | D50: 38% | E50: $3,385.82
A51: AP560i-WR | B51: Dual 5GHz Dual band Sensor radio Dual Radio 802.11ax/ac/abgn 4x44 MIMO Outdoor 11ax access point. Internal Antenna. Domain Canada EMEA and Singapore | C51: $3,384.00 | D51: 38% | E51: $2,098.08
A52: AP460e-FCC | B52: Tri Radio 802.11ax - 4x44 + 2x22 Full time 2x22 Sensor Outdoor External Antenna Access Point. Domain US and Puerto Rico | C52: $1,791.00 | D52: 38% | E52: $1,110.42
A53: AP460e-WR | B53: Tri Radio 802.11ax - 4x44 + 2x22 Full time 2x22 Sensor Outdoor External Antenna Access Point. Domain EMEA Rest of World | C53: $1,791.00 | D53: 38% | E53: $1,110.42
A54: AP460i-FCC | B54: Tri Radio 802.11ax - 4x44 + 2x22 Full time 2x22 Sensor Outdoor Internal Antenna Access Point. Domain US and Puerto Rico | C54: $1,791.00 | D54: 38% | E54: $1,110.42
A55: AP460i-WR | B55: Tri Radio 802.11ax - 4x44 + 2x22 Full time 2x22 Sensor Outdoor Internal Antenna Access Point. Domain EMEA Rest of World | C55: $1,791.00 | D55: 38% | E55: $1,110.42
A56: AP460e-CAN | B56: Tri Radio 802.11ax - 4x44 + 2x22 Full time 2x22 Sensor Outdoor External Antenna Access Point. Domain Canada | C56: $1,791.00 | D56: 38% | E56: $1,110.42
A57: AP460i-CAN | B57: Tri Radio 802.11ax - 4x44 + 2x22 Full time 2x22 Sensor Outdoor Internal Antenna Access Point. Domain Canada | C57: $1,791.00 | D57: 38% | E57: $1,110.42
A58: AP460i-IL | B58: Tri Radio 802.11ax - 4x44 + 2x22 Full time 2x22 Sensor Outdoor Internal Antenna Access Point. Domain Israel | C58: $1,791.00 | D58: 38% | E58: $1,110.42
A59: AP360e-FCC | B59: Dual Radio 802.11ax - 2x22 Dual 5G Outdoor External Antenna Access Point. Domain US and Puerto Rico | C59: $1,261.00 | D59: 38% | E59: $781.82
A60: AP360e-WR | B60: Dual Radio 802.11ax - 2x22 Dual 5G Outdoor External Antenna Access Point. Domain EMEA Rest of World | C60: $1,261.00 | D60: 38% | E60: $781.82
A61: MBO-ART02 | B61: MBO-ART02 Articulating Mtg Brkt | C61: $242.00 | D61: 38% | E61: $150.04
A62: EIO-04 | B62: Underseat Mounting Solution for AP5050U or AP560i w/ Pass-Through | C62: $669.00 | D62: 38% | E62: $414.78
A63: ACC-MBO-KT-AX | B63: Adaptor bracket for Outdoor AP460xxxC for tilting brackets (KT-147407-02 KT-150173-01 or MBO-ART02). | C63: $113.00 | D63: 38% | E63: $70.06
A64: EIO-GASKET | B64: EIO-GASKET Silicone Rubber Kit | C64: $96.00 | D64: 38% | E64: $59.52
A65: MBO-ART03 | B65: MBO-ART03 2-Axis Rotational Variable Extension Mtg Brkt for Outdoor Access Points | C65: $300.00 | D65: 38% | E65: $186.00
A66: ACC-BKT-AX-WP-SPARE | B66: AP302W Wallplate in-box accessory (sold as a spare) | C66: $21.00 | D66: 38% | E66: $13.02
A67: ACC-BKT-AX-WP-EXT | B67: Surface Mounted Wallplate Housing Extension | C67: $21.00 | D67: 38% | E67: $13.02
A68: EIO-03-SP | B68: Service Panel for AP560i/AP560h | C68: $105.00 | D68: 38% | E68: $65.10
A69: ACC-4000-ETH-CAP | B69: Cable cover for AP4000 to hide Ethernet Port and Ethernet cable. Includes a 7 Flat Cat6 RJ45 Cable (5 Pack Kit) | C69: $51.00 | D69: 38% | E69: $31.62
A70: ACC-305C-ETH-CAP | B70: Cable cover for AP305C or AP305CX to hide Ethernet Port and Ethernet cable. Includes a 5 Flat Cat5e RJ45 Cable and inline coupler. (5 Pack Kit) | C70: $51.00 | D70: 38% | E70: $31.62
A71: ACC-410C-ETH-CAP | B71: Cable cover for AP410C to hide Ethernet Port and Ethernet cable. Includes a 7 Flat Cat6 RJ45 Cable and inline coupler. (5 Pack Kit) | C71: $77.00 | D71: 38% | E71: $47.74
A72: ACC-BKT-AX-ADAPT-012 | B72: Adaptor Bracket for 3rd Party AIR-AP-BRACKET 1 and AIR-AP-BRACKET 2. | C72: $59.00 | D72: 38% | E72: =C72-(C72*D72) -> $36.58
A73: ACC-BKT-AX-TBW | B73: Cloud AP Bracket for 1.5 inch wide T-bars varying in thickness from 3.175mm to 6.35mm | C73: $27.00 | D73: 38% | E73: $16.74
A74: ACC-WIFI-MICRO-USB | B74: Micro-USB to USB Console Adapter Cable for Extreme Wireless Access Points | C74: $38.00 | D74: 38% | E74: $23.56
A75: ACC-BKT-AX-WP-DSKSTD | B75: Desk Mount stand for the AP302W. Includes screws. | C75: $31.00 | D75: 38% | E75: $19.22
A76: ACC-BKT-AX-WNGADAPT | B76: Adaptor bracket for Cloud AP to WiNG Mounting Plate (37201) 10 in pack | C76: $308.00 | D76: 38% | E76: $190.96
A77: ACC-BKT-TB-NF | B77: Adaptor bracket AH-ACC-BKT-TB for 15/16 Wide T-Bars Non-Flat/Protruded ceiling tiles | C77: $15.00 | D77: 38% | E77: $9.30
A78: ACC-BKT-AX-BEAM | B78: Beam Mounting for Indoor Access Points | C78: $31.00 | D78: 38% | E78: $19.22
A79: ACC-BKT-AX-JB | B79: Junction Box Mounting for Indoor Access Points | C79: $31.00 | D79: 38% | E79: $19.22
A80: AP310e-1-WR | B80: Dual Radio 802.11ax - 2x22 Dual 5G Indoor External Antenna Access Point. Wi-Fi 6 - Domain EMEA Rest of World | C80: $759.00 | D80: 38% | E80: $470.58
A81: AP410i-1-WR | B81: Tri Radio 802.11ax - 4x44 + 2x22 Full time 2x22 Sensor Indoor Internal Antenna Access Point. Wi-Fi 6 - Domain EMEA Rest of World | C81: $1,364.00 | D81: 38% | E81: $845.68
A82: AP410i-1-FCC | B82: Tri Radio 802.11ax - 4x44 + 2x22 Full time 2x22 Sensor Indoor Internal Antenna Access Point. Wi-Fi 6 - Domain US and Puerto Rico | C82: $1,364.00 | D82: 38% | E82: $845.68
A83: AP510i-1-FCC | B83: Dual 5GHz Dual band Sensor radio Dual Radio 802.11ax/ac/abgn 4x44 MIMO Indoor 11ax access point. Internal Antenna. Wi-Fi 6 - Domain US Puerto Rico and Colombia | C83: $1,741.00 | D83: 38% | E83: $1,079.42
A84: AP310i-1-WR | B84: Dual Radio 802.11ax - 2x22 Dual 5G Indoor Internal Antenna Access Point. Wi-Fi 6 - Domain EMEA Rest of World | C84: $759.00 | D84: 38% | E84: $470.58
A85: AP510i-1-WR | B85: Dual 5GHz Dual band Sensor radio Dual Radio 802.11ax/ac/abgn 4x44 MIMO Indoor 11ax access point. Internal Antenna. Wi-Fi 6 - Domain EMEA and Rest Of World | C85: $1,741.00 | D85: 38% | E85: $1,079.42
A86: PSI-1300W-APL | B86: 1300W Redundant Power Supply for appliances E3120/E2122/4120C | C86: $660.00 | D86: 38% | E86: $409.20
A87: E3120-1 | B87: ExtremeCloud IQ Controller E3120-1 (1300W Edition) - expandable to 5000 APs/Defenders and 1000 Switches (Requires Separate Activation Key) | C87: $77,817.00 | D87: 38% | E87: $48,246.54
A88: E2122-1 | B88: ExtremeCloud IQ Controller E2122-1 (1300W Edition)- expandable to 2000 APs/Defenders and 800 Switches (Requires Separate Activation Key) | C88: $46,199.00 | D88: 38% | E88: $28,643.38
A89: 30137 | B89: Extreme Campus Controller E1120 - expandable to 125 APs/Defenders and 50 Switches (Requires Separate Activation Key) | C89: $12,560.00 | D89: 38% | E89: $7,787.20
A90: XIQ-CACT-VT | B90: ExtremeCloud IQ Controller Activation License for Virtual Appliances | C90: $1,995.00 | D90: 38% | E90: $1,236.90
A91: XIQ-CACT-VT-EGY | B91: ExtremeCloud IQ Controller Activation License for Virtual Appliances (Egypt Only) | C91: $1,995.00 | D91: 38% | E91: $1,236.90
A92: XIQ-CACT-HW-EGY | B92: ExtremeCloud IQ Controller Activation License for Hardware Appliances (Egypt Only) | C92: $1.00 | D92: 38% | E92: $0.62
A93: XIQ-CACT-HW | B93: ExtremeCloud IQ Controller Activation License for Hardware Appliances | C93: $1.00 | D93: 38% | E93: $0.62
A94: 39505 | B94: Defender Adapter 201 with two 10/100/1000 BASE-T ports (1 network port and 1 device port) power from POE/POE+ optional power adapter sold separately. Verify country availability before ordering. | C94: $749.00 | D94: 38% | E94: $464.38
A95: 39521 | B95: Defender License for 10 Protected End Systems | C95: $1.00 | D95: 38% | E95: $0.62
A96: 39522 | B96: Defender License for 100 Protected End Systems | C96: $1.00 | D96: 38% | E96: $0.62
A97: 39523 | B97: Defender License for 1000 Protected End Systems | C97: $1.00 | D97: 38% | E97: $0.62
A98: 39524 | B98: Defender License for 5000 Protected End Systems | C98: $1.00 | D98: 38% | E98: $0.62
A99: 39525 | B99: Defender License for 10000 Protected End Systems | C99: $1.00 | D99: 38% | E99: $0.62
A100: VX9-NSIGHT-256 | B100: VX-9000 NSIGHT PERPETUAL LICENSE FOR 256 APS | C100: $13,824.00 | D100: 38% | E100: $8,570.88
A101: NX9-NSIGHT-64 | B101: NX-9XXX NSIGHT PERPETUAL LICENSE FOR 64 APS | C101: $3,456.00 | D101: 38% | E101: $2,142.72
A102: NX9-NSIGHT-256 | B102: NX-9XXX NSIGHT PERPETUAL LICENSE FOR 256 APS | C102: $13,824.00 | D102: 38% | E102: $8,570.88
A103: NX9-NSIGHT-2048 | B103: NX-9XXX NSIGHT PERPETUAL LICENSE FOR 2048 APS | C103: $110,592.00 | D103: 38% | E103: $68,567.04
A104: VX9-NSIGHT-2048 | B104: VX-9000 NSIGHT PERPETUAL LICENSE FOR 2048 APS | C104: $110,592.00 | D104: 38% | E104: $68,567.04
A105: NX9-NSIGHT-16 | B105: NX-9XXX NSIGHT PERPETUAL LICENSE FOR 16 APS | C105: $864.00 | D105: 38% | E105: $535.68
A106: NX9-NSIGHT-1024 | B106: NX-9XXX NSIGHT PERPETUAL LICENSE FOR 1024 APS | C106: $55,296.00 | D106: 38% | E106: $34,283.52
A107: NX9-NSIGHT-1 | B107: NX-9XXX NSIGHT PERPETUAL LICENSE FOR 1 AP | C107: $54.00 | D107: 38% | E107: $33.48
A108: VX9-NSIGHT-1024 | B108: VX-9000 NSIGHT PERPETUAL LICENSE FOR 1024 APS | C108: $55,296.00 | D108: 38% | E108: $34,283.52
A109: SP-SWSV-P-1 | B109: AIRDEFENSE ADSP SERVER SW LICENSE | C109: $995.00 | D109: 38% | E109: $616.90
A110: AD-FLRS-P-100 | B110: LICENSERS WIPS FOR 100 SENSOR-ADSP | C110: $8,995.00 | D110: 38% | E110: $5,576.90
A111: AD-FLRS-P-1 | B111: LICENSERS WIPS FOR 1 SENSOR-ADSP | C111: $99.00 | D111: 38% | E111: $61.38
A112: AD-FESN-P-1 | B112: LICENSE ADV FORENSICS FOR ONE SENSOR-AD | C112: $195.00 | D112: 38% | E112: $120.90
A113: AD-FERS-P-1 | B113: LICENSERADIOSHARE ADV FORENSICS 1 AP | C113: $65.00 | D113: 38% | E113: $40.30
A114: AD-SNFL-P-1 | B114: LICENSE WIPS FOR ONE SENSOR-AIRDEFENSE | C114: $695.00 | D114: 38% | E114: $430.90
A115: AD-VASN-P-1 | B115: LICENSEVULNERABILITY ASSESMNT 1 SENSOR | C115: $295.00 | D115: 38% | E115: $182.90
A116: 30703 | B116: Indoor 4.9-6.1GHz 4-feed 4dBi 60 degree sector antenna with standard RPSMA-type plug | C116: $746.00 | D116: 38% | E116: $462.52
A117: WS-CAB-10DBATN-SN | B117: 10DBI ATTENUATOR WITH N-TYPE CONNECTOR | C117: $267.00 | D117: 38% | E117: $165.54
A118: WS-CAB-10DBATN | B118: 10DB LOSS ATTENUATOR | C118: $313.00 | D118: 38% | E118: $194.06
A119: WS-CAB-06DBATN | B119: 6DB LOSS ATTENUATOR | C119: $313.00 | D119: 38% | E119: $194.06
A120: 30716 | B120: Outdoor 5GHz four feed 5dBi 25 degree sector antenna with standard N-type plug connector | C120: $1,599.00 | D120: 38% | E120: $991.38
A121: 30712 | B121: Outdoor 4.9-6.1GHz 4-feed 4dBi 60 degree sector antenna with standard N-type plug | C121: $746.00 | D121: 38% | E121: $462.52
A122: 30711 | B122: Outdoor 2.3-2.7/4.9-6.1GHz 4-feed 5dBi 120 degree sector antenna with standard N-type plug connector | C122: $693.00 | D122: 38% | E122: $429.66
A123: 30707 | B123: Indoor 2.4GHz/5GHz eight feed 10/6dBi 55 degree sector antenna with standard RPSMA-type plug connector | C123: $4,555.00 | D123: 38% | E123: $2,824.10
A124: 30706 | B124: Indoor 5GHz four feed 5dBi 25 degree sector antenna with RPSMA-type plug connector | C124: $1,759.00 | D124: 38% | E124: $1,090.58
A125: 30705 | B125: Indoor 2.4GHz/5GHz eight feed 6.5/5.5dBi 25 degree sector antenna with standard RPSMA-type plug connector | C125: $4,555.00 | D125: 38% | E125: $2,824.10
A126: 30704 | B126: Indoor 2.3-2.7GHz 4-feed 5dBi 60 degree sector antenna with standard RPSMA-type plug connector | C126: $746.00 | D126: 38% | E126: $462.52
A127: WS-CAB-6DBATN-SN | B127: 6DB ATTENUATOR WITH N-TYPE CONNECTORS | C127: $267.00 | D127: 38% | E127: $165.54
A128: 30702 | B128: Indoor 2.3-2.7/4.9-6.1GHz 4-feed 5dBi 120 degree sector antenna with standard RPSMA-type plug connector | C128: $1,570.00 | D128: 38% | E128: $973.40
A129: WS-CAB-L400C20N | B129: LMR400 20 FT N | C129: $204.00 | D129: 38% | E129: $126.48
A130: WS-CAB-L200C20N | B130: LMR200 20 FT N | C130: $156.00 | D130: 38% | E130: $96.72
A131: WS-CAB-L400C75N | B131: LMR400 75 FT N | C131: $409.00 | D131: 38% | E131: $253.58
A132: WS-CAB-L600C25N | B132: LMR600 25 FT N | C132: $422.00 | D132: 38% | E132: $261.64
A133: WS-CAB-L600C50N | B133: LMR600 50 FT N | C133: $579.00 | D133: 38% | E133: $358.98
A134: WS-CAB-NP-RPNJ | B134: CABLE, 1 FT LMR400, TYPE-N PLUG TO RPNJ | C134: $156.00 | D134: 38% | E134: $96.72
A135: WS-CAB-NP-RPNP | B135: CABLE, 1 FT LMR400, TYPE-N PLUG TO RPNP | C135: $156.00 | D135: 38% | E135: $96.72
A136: WS-CAB-NTERM | B136: N-TYPE PORT TERMINATOR | C136: $124.00 | D136: 38% | E136: =C136-(C136*D136) -> $76.88
A137: WS-CAB-P10RJNJ | B137: RN JACK TO N JACK EXTENDER | C137: $156.00 | D137: 38% | E137: $96.72
A138: WS-CAB-P10RPNP | B138: RN PLUG TO N PLUG EXTENDER | C138: $156.00 | D138: 38% | E138: $96.72
A139: WS-CAB240-P10RP | B139: INDOOR R-SMA 10 FT CABLE | C139: $156.00 | D139: 38% | E139: $96.72
A140: WS-CAB240-P25RP | B140: INDOOR R-SMA 25 FT CABLE | C140: $218.00 | D140: 38% | E140: $135.16
A141: 30515 | B141: Wall mounting bracket extension for indoor and outdoor directional service antennas | C141: $188.00 | D141: 38% | E141: $116.56
A142: WS-CAB-L400C50N | B142: LMR400 50 FT N | C142: $313.00 | D142: 38% | E142: $194.06
A143: WS-CAB-L400C06N | B143: LMR400 6 FT N | C143: $156.00 | D143: 38% | E143: $96.72
A144: 30512 | B144: Multi region 12V Indoor External Power Supply | C144: $99.00 | D144: 38% | E144: $61.38
A145: NX-7530-100R0-WR | B145: NX 7530 INTEGRATED SVC PLATFORM | C145: $32,985.00 | D145: 38% | E145: $20,450.70
A146: NX-7510-100R0-WR | B146: NX 7510 INTEGRATED SVC PLATFORM | C146: $23,560.00 | D146: 38% | E146: $14,607.20
A147: NX-7520-100R0-WR | B147: NX 7520 INTEGRATED SVC PLATFORM | C147: $31,414.00 | D147: 38% | E147: $19,476.68
A148: NX-5500-100R0-WR | B148: NX-5500 SERVICES PLATFORM | C148: $7,848.00 | D148: 38% | E148: $4,865.76
A149: NX-7500-RAIL | B149: NX 7500 MOUNTING KIT - SLIDING RAILS | C149: $473.00 | D149: 38% | E149: $293.26
A150: NX-7500-10G-NMC | B150: NX 7500 - 2-PORT 10G SFP+ NMC MODULE | C150: $5,498.00 | D150: 38% | E150: $3,408.76
A151: NX-7500-AC-PSU | B151: NX 7500 AC POWER SUPPLY | C151: $1,180.00 | D151: 38% | E151: $731.60
A152: NX-7500-1G-NMC | B152: NX 7500 - 4-PORT 1G SFP NMC MODULE | C152: $4,713.00 | D152: 38% | E152: $2,922.06
A153: NX-7500-HD-500GB | B153: NX 7530 500GB SPARE HARD DRIVE | C153: $1,728.00 | D153: 38% | E153: $1,071.36
A154: VX-9000-APPLNC-LIC | B154: LICENSEVX-9000 APPLIANCE | C154: $2,394.00 | D154: 38% | E154: $1,484.28
A155: ML-2452-HPAG5A8-01 | B155: ANTDP4.5DBI 2.4GHZ7.5DBI 5GHZ Ntype | C155: $374.00 | D155: 38% | E155: $231.88
A156: ML-5299-HPA10-01 | B156: Environment Outdoor Rated Type Dipole Gain 10 dBi 5.0GHz4.9GHz Connector N-Male | C156: $393.00 | D156: 38% | E156: $243.66
A157: ML-5299-HPA5-01 | B157: Outdoor Rated Type Dipole Gain 5dBi 5.0GHz Connector N-Male | C157: $214.00 | D157: 38% | E157: $132.68
A158: 30724 | B158: Outdoor 2.4-2.5/5.15-5.875GHz 4dBi Omni antenna with standard N-type plug connector | C158: $1,098.00 | D158: 38% | E158: $680.76
A159: ML-2452-PTA3M3-036 | B159: AP-7131 3 PORT MIMO ANTENNA 36IN PIGTAIL | C159: $235.00 | D159: 38% | E159: $145.70
A160: ML-2452-HPA6-01 | B160: ANTDUAL BAND 6 DBI ANTENNA | C160: $60.00 | D160: 38% | E160: $37.20
A161: ML-2452-SEC6M3-N36 | B161: ANT3 PORT DUAL BAND SECTOR ANTENNA WITH 36 INCH CABLE AND N-MALE CONNECTOR | C161: $435.00 | D161: 38% | E161: $269.70
A162: ML-2452-SEC6M4-036 | B162: DUAL POLARIZED DUAL BAND WIDE BEAM DIRECTIONAL ANTENNA WITH 36 INCH CABLE AND RPSMA-MALE CONNECTOR | C162: $678.00 | D162: 38% | E162: $420.36
A163: ML-2452-VMM3M3-036 | B163: ANT 3 DUAL BAND ELEMENTS VMM ANTENNA | C163: $393.00 | D163: 38% | E163: $243.66
A164: ML-2452-PTA6M6-036 | B164: ANT 6 PORT PATCH ANTENNA | C164: $589.00 | D164: 38% | E164: $365.18
A165: ML-2452-PTA6X6-036 | B165: ANT 6 PORT PATCH ANTENNA | C165: $354.00 | D165: 38% | E165: $219.48
A166: ML-2499-HPA3-02R | B166: ANT 2.4GHZ 3.3DBI DIPOLE ANTENNA | C166: $141.00 | D166: 38% | E166: $87.42
A167: ML-2452-APAG2A1-01 | B167: ANTDIPOLEGN2DBI-2.4GHZ1DBI-5GHZBLK | C167: $12.00 | D167: 38% | E167: $7.44
A168: ML-2452-PNL6M3-N36 | B168: ANT3 PORT DUAL BAND PANEL ANTENNA WITH 36 INCH CABLE AND N-MALE CONNECTOR | C168: $370.00 | D168: 38% | E168: $229.40
A169: ML-2452-LAK1-02R | B169: DUAL BAND LIGHTNING ARRESTOR | C169: $195.00 | D169: 38% | E169: $120.90
A170: ML-2452-HPA6X6-036 | B170: ANT 6 PORT OMNI ANTENNA | C170: $470.00 | D170: 38% | E170: $291.40
A171: ML-5299-APA1-01R | B171: ANT5.5 GHZ DP AJ2DBICBL 0SMARP-F | C171: $96.00 | D171: 38% | E171: $59.52
A172: ML-2452-APA2-02 | B172: ANT2.4-5GHZDBANDDP 67 DBIRP-SMAWHT | C172: $37.00 | D172: 38% | E172: $22.94
A173: ML-2452-PTA4M4-036 | B173: ANTENNA PATCH4 DUAL ELEMENT INDOOR | C173: $251.00 | D173: 38% | E173: $155.62
A174: ML-2452-SEC6M4-N30 | B174: DUAL BAND SECTOR WITH 30 INCH CABLE AND N CONNECTORS | C174: $684.00 | D174: 38% | E174: $424.08
A175: ML-2452-VMM5M3-N72 | B175: 3 PORT DUAL BAND VMM ANTENNA | C175: $313.00 | D175: 38% | E175: $194.06
A176: ML-2452-HPA6M6-072 | B176: ANT 6 DUAL ELEMENT OMN ANTENNA | C176: $707.00 | D176: 38% | E176: $438.34
A177: ML-2452-PNL9M3-036 | B177: ANT MIMO DUAL BAND SECTOR | C177: $566.00 | D177: 38% | E177: $350.92
A178: ML-2452-HPAG4A6-01 | B178: ANTDP4.0DBI 2.4GHZ7.0DBI 5GHZ | C178: $187.00 | D178: 38% | E178: $115.94
A179: ML-2452-PNL3M3-1 | B179: DUALBAND DUAL POLARIZED SECTOR ANTENNA | C179: $375.00 | D179: 38% | E179: $232.50
A180: ML-2452-PTA2M2-036 | B180: ANT 2 PORT DUAL BAND PATCH ANTENNA | C180: $185.00 | D180: 38% | E180: $114.70
A181: ML-2452-PNL9M3-N36 | B181: ANT3 PORT DUAL BAND PANEL ANTENNA | C181: $488.00 | D181: 38% | E181: $302.56
A182: ML-2452-SEC6M4-N36 | B182: DUAL POLARIZED DUAL BAND WIDE BEAM DIRECTIONAL ANTENNA WITH 36 INCH CABLE AND N-MALE CONNECTOR | C182: $546.00 | D182: 38% | E182: $338.52
A183: ML-2452-HPA5-036 | B183: Antenna 2G and 5G 3dBOmni directional Dipole for outdoor use | C183: $373.00 | D183: 38% | E183: $231.26
A184: ML-2452-APAG2A1-02 | B184: Antenna 2G and 5G 3dB Omni for indoor White Color | C184: $12.00 | D184: 38% | E184: $7.44
A185: ML-2452-APA2-01 | B185: Antenna 2.4/5 GHz Indoor Type Dipole (Paddle) Gain 3dBi/2.4GHz 4dBi/5GHz Beam Width E-Plane 35 degrees H-Plane 360 degrees Connector RP-SMA Male | C185: $37.00 | D185: 38% | E185: $22.94
A186: ML-2452-PNA7-01R | B186: Antenna 2.4/5 GHz Outdoor Panel 7 dBi Beam Width E-Plane 66 degrees H-Plane 68 degrees Connector Type N-Male | C186: $518.00 | D186: 38% | E186: $321.16
A187: ML-2452-LAK1-01R | B187: 2.4/5 GHz Lightning Arrestor (N Female to N Female) with N Male to RP-SMA Male adapter | C187: $329.00 | D187: 38% | E187: $203.98
A188: ML-2452-PNA5-01R | B188: Antenna 2.4/5 GHz Outdoor Panel 5 dBi Beam Width E-Plane 65 degrees H-Plane 120 degrees Connector Type N-Male | C188: $373.00 | D188: 38% | E188: $231.26
A189: ML-5299-FHPA6-01R | B189: Antenna 5 GHz Outdoor Type Dipole Array (Pipe) Omnidirectional 6 dBi Beam Width E-Plane 16 degrees H-Plane 360 degrees N-Male connector type | C189: $313.00 | D189: 38% | E189: $194.06
A190: ML-2499-HPA8-01 | B190: Environment Outdoor Rated Type Dipole Gain 8 dBi 2.4GHz Connector N-Male | C190: $313.00 | D190: 38% | E190: $194.06
A191: ML-2499-HPA4-01 | B191: Outdoor Rated Type Dipole Gain 4dBi 2.4GHz Connector N-Male | C191: $214.00 | D191: 38% | E191: $132.68
A192: 32216 | B192: Vehicle Mounted Modem Bracket | C192: $435.00 | D192: 38% | E192: $269.70
A193: 37211 | B193: Drop Ceiling Flat Tile Tbar Bracket. Accommodates 9/16 15/16 and 1.5 wide T-bars | C193: $54.00 | D193: 38% | E193: $33.48
A194: 25-85391-01R | B194: RP-SMA (Male) to Type N (Male) Adapter | C194: $55.00 | D194: 38% | E194: $34.10
A195: 25-85392-01R | B195: RP-SMA (Male) To Type N (Female) Adapter | C195: $55.00 | D195: 38% | E195: $34.10
A196: 25-90262-01R | B196: RP-SMA-Female to N-Female adapter | C196: $30.00 | D196: 38% | E196: $18.60
A197: 25-90263-01R | B197: RP-SMA-Female to N-Male adapter | C197: $30.00 | D197: 38% | E197: $18.60
A198: 25-90263-02R | B198: N-MALE TO RP-SMA FEMALE ADAPTER | C198: $30.00 | D198: 38% | E198: $18.60
A199: 25-99175-01R | B199: N-Type Female to N-Type Female Adaptor | C199: $12.00 | D199: 38% | E199: $7.44
A200: 23844-00-00R | B200: CORD SET18AWG SVT 3COND 7.5FT | C200: $12.00 | D200: 38% | E200: =C200-(C200*D200) -> $7.44
A201: KT-135628-01 | B201: UNIVERSAL MOUNTING KIT FOR EWLAN APS | C201: $39.00 | D201: 38% | E201: $24.18
A202: KT-150173-01 | B202: OUTDOOR AP 12 IN EXT ARM FOR MNTG KIT | C202: $197.00 | D202: 38% | E202: $122.14
A203: KT-153676-01 | B203: OUTDOOR RJ45 CONNECTOR PLUG KIT | C203: $32.00 | D203: 38% | E203: $19.84
A204: BRKT-000147A-01 | B204: BEAM CLIP for Mounting Plate | C204: $26.00 | D204: 38% | E204: $16.12
... 1781 more rows

Sheet PL Service
A2: SERVICE PRICE LIST
A3: Extreme Networks Data Communications Contract # AR3230 as of February 2026
A6: Extreme Networks Service Part Information
A7: Service Part Number | B7: Service Number | C7: Service Suffix | D7: Product Part Number | E7: Service Program | F7: Service Type | G7: Service List Price | H7: Discount | I7: Contract Price | J7: Service Name | K7: Product Name | L7: Service Class
A8: 95504-H30003 | B8: 95504 | C8: H30003 | D8: 08G20G2-08 | E8: Partner Works | F8: NBD AHR | G8: $33.00 | H8: 12% | I8: =G8-(G8*H8) -> $29.04 | J8: PW NBD AHR | K8: PW NBD AHR | L8: Hardware
A9: 95600-H30003 | B9: 95600 | C9: H30003 | D9: 08G20G2-08 | E9: Partner Works Plus | F9: TAC & Software | G9: $26.00 | H9: 12% | I9: =G9-(G9*H9) -> $22.88 | J9: PWP Software and TAC | K9: PWP Software and TAC | L9: Hardware
A10: 95604-H30003 | B10: 95604 | C10: H30003 | D10: 08G20G2-08 | E10: Partner Works Plus | F10: NBD AHR | G10: $33.00 | H10: 12% | I10: $29.04 | J10: PWP NBD AHR | K10: PWP NBD AHR | L10: Hardware
A11: 97000-H30003 | B11: 97000 | C11: H30003 | D11: 08G20G2-08 | E11: ExtremeWorks | F11: TAC & Software | G11: $26.00 | H11: 12% | I11: $22.88 | J11: EW Software and TAC | K11: EW Software and TAC | L11: Hardware
A12: 97004-H30003 | B12: 97004 | C12: H30003 | D12: 08G20G2-08 | E12: ExtremeWorks | F12: NBD AHR | G12: $33.00 | H12: 12% | I12: $29.04 | J12: EW NBD AHR | K12: EW NBD AHR | L12: Hardware
A13: 97304-H30003 | B13: 97304 | C13: H30003 | D13: 08G20G2-08 | E13: ExtremeWorks | F13: E-Rate(US ONLY) | G13: $7.00 | H13: 12% | I13: $6.16 | J13: EW Edu NBD PartOnly-H30003 | K13: EW Edu NBD PartOnly-H30003 | L13: Hardware
A14: 97404-H30003 | B14: 97404 | C14: H30003 | D14: 08G20G2-08 | E14: ExtremeWorks | F14: MonitorPLS NBDAHR | G14: $464.00 | H14: 12% | I14: $408.32 | J14: EW MonitorPLS NBD AHR-H30003 | K14: EW MonitorPLS NBD AHR-H30003 | L14: Hardware
A15: 97504-H30003 | B15: 97504 | C15: H30003 | D15: 08G20G2-08 | E15: ExtremeWorks | F15: ResponsPLS NBDAHR | G15: $794.00 | H15: 12% | I15: $698.72 | J15: EW ResponsePLS NBD AHR-H30003 | K15: EW ResponsePLS NBD AHR-H30003 | L15: Hardware
A16: 98000-H30003 | B16: 98000 | C16: H30003 | D16: 08G20G2-08 | E16: ExtremeWorks Premier | F16: TAC & Software | G16: $37.00 | H16: 12% | I16: $32.56 | J16: EWP Premier TAC OS H30003 | K16: EWP Premier TAC OS H30003 | L16: Hardware
A17: 98004-H30003 | B17: 98004 | C17: H30003 | D17: 08G20G2-08 | E17: ExtremeWorks Premier | F17: NBD AHR | G17: $45.00 | H17: 12% | I17: $39.60 | J17: EWP Premier NBD AHR H30003 | K17: EWP Premier NBD AHR H30003 | L17: Hardware
A18: 98504-H30003 | B18: 98504 | C18: H30003 | D18: 08G20G2-08 | E18: ExtremeWorks Premier Plus | F18: Managed Service NBD AHR | G18: $796.00 | H18: 12% | I18: $700.48 | J18: EWPP PremierPLS NBD AHR H30003 | K18: EWPP PremierPLS NBD AHR H30003 | L18: Hardware
A19: 95504-H30004 | B19: 95504 | C19: H30004 | D19: 08G20G2-08P | E19: Partner Works | F19: NBD AHR | G19: $45.00 | H19: 12% | I19: $39.60 | J19: PW NBD AHR | K19: PW NBD AHR | L19: Hardware
A20: 95600-H30004 | B20: 95600 | C20: H30004 | D20: 08G20G2-08P | E20: Partner Works Plus | F20: TAC & Software | G20: $33.00 | H20: 12% | I20: $29.04 | J20: PWP Software and TAC | K20: PWP Software and TAC | L20: Hardware
A21: 95604-H30004 | B21: 95604 | C21: H30004 | D21: 08G20G2-08P | E21: Partner Works Plus | F21: NBD AHR | G21: $45.00 | H21: 12% | I21: $39.60 | J21: PWP NBD AHR | K21: PWP NBD AHR | L21: Hardware
A22: 97000-H30004 | B22: 97000 | C22: H30004 | D22: 08G20G2-08P | E22: ExtremeWorks | F22: TAC & Software | G22: $33.00 | H22: 12% | I22: $29.04 | J22: EW Software and TAC | K22: EW Software and TAC | L22: Hardware
A23: 97004-H30004 | B23: 97004 | C23: H30004 | D23: 08G20G2-08P | E23: ExtremeWorks | F23: NBD AHR | G23: $45.00 | H23: 12% | I23: $39.60 | J23: EW NBD AHR | K23: EW NBD AHR | L23: Hardware
A24: 97304-H30004 | B24: 97304 | C24: H30004 | D24: 08G20G2-08P | E24: ExtremeWorks | F24: E-Rate(US ONLY) | G24: $12.00 | H24: 12% | I24: $10.56 | J24: EW Edu NBD PartOnly-H30004 | K24: EW Edu NBD PartOnly-H30004 | L24: Hardware
A25: 97404-H30004 | B25: 97404 | C25: H30004 | D25: 08G20G2-08P | E25: ExtremeWorks | F25: MonitorPLS NBDAHR | G25: $475.00 | H25: 12% | I25: $418.00 | J25: EW MonitorPLS NBD AHR-H30004 | K25: EW MonitorPLS NBD AHR-H30004 | L25: Hardware
A26: 97504-H30004 | B26: 97504 | C26: H30004 | D26: 08G20G2-08P | E26: ExtremeWorks | F26: ResponsPLS NBDAHR | G26: $805.00 | H26: 12% | I26: $708.40 | J26: EW ResponsePLS NBD AHR-H30004 | K26: EW ResponsePLS NBD AHR-H30004 | L26: Hardware
A27: 98000-H30004 | B27: 98000 | C27: H30004 | D27: 08G20G2-08P | E27: ExtremeWorks Premier | F27: TAC & Software | G27: $53.00 | H27: 12% | I27: $46.64 | J27: EWP Premier TAC OS H30004 | K27: EWP Premier TAC OS H30004 | L27: Hardware
A28: 98004-H30004 | B28: 98004 | C28: H30004 | D28: 08G20G2-08P | E28: ExtremeWorks Premier | F28: NBD AHR | G28: $65.00 | H28: 12% | I28: $57.20 | J28: EWP Premier NBD AHR H30004 | K28: EWP Premier NBD AHR H30004 | L28: Hardware
A29: 98504-H30004 | B29: 98504 | C29: H30004 | D29: 08G20G2-08P | E29: ExtremeWorks Premier Plus | F29: Managed Service NBD AHR | G29: $816.00 | H29: 12% | I29: $718.08 | J29: EWPP PremierPLS NBD AHR H30004 | K29: EWPP PremierPLS NBD AHR H30004 | L29: Hardware
A30: 95504-H30005 | B30: 95504 | C30: H30005 | D30: 08G20G4-24 | E30: Partner Works | F30: NBD AHR | G30: $40.00 | H30: 12% | I30: $35.20 | J30: PW NBD AHR | K30: PW NBD AHR | L30: Hardware
A31: 95600-H30005 | B31: 95600 | C31: H30005 | D31: 08G20G4-24 | E31: Partner Works Plus | F31: TAC & Software | G31: $30.00 | H31: 12% | I31: $26.40 | J31: PWP Software and TAC | K31: PWP Software and TAC | L31: Hardware
A32: 95604-H30005 | B32: 95604 | C32: H30005 | D32: 08G20G4-24 | E32: Partner Works Plus | F32: NBD AHR | G32: $40.00 | H32: 12% | I32: $35.20 | J32: PWP NBD AHR | K32: PWP NBD AHR | L32: Hardware
A33: 97000-H30005 | B33: 97000 | C33: H30005 | D33: 08G20G4-24 | E33: ExtremeWorks | F33: TAC & Software | G33: $30.00 | H33: 12% | I33: $26.40 | J33: EW Software and TAC | K33: EW Software and TAC | L33: Hardware
A34: 97004-H30005 | B34: 97004 | C34: H30005 | D34: 08G20G4-24 | E34: ExtremeWorks | F34: NBD AHR | G34: $40.00 | H34: 12% | I34: $35.20 | J34: EW NBD AHR | K34: EW NBD AHR | L34: Hardware
A35: 97304-H30005 | B35: 97304 | C35: H30005 | D35: 08G20G4-24 | E35: ExtremeWorks | F35: E-Rate(US ONLY) | G35: $10.00 | H35: 12% | I35: $8.80 | J35: EW Edu NBD PartOnly-H30005 | K35: EW Edu NBD PartOnly-H30005 | L35: Hardware
A36: 97404-H30005 | B36: 97404 | C36: H30005 | D36: 08G20G4-24 | E36: ExtremeWorks | F36: MonitorPLS NBDAHR | G36: $676.00 | H36: 12% | I36: $594.88 | J36: EW MonitorPLS NBD AHR-H30005 | K36: EW MonitorPLS NBD AHR-H30005 | L36: Hardware
A37: 97504-H30005 | B37: 97504 | C37: H30005 | D37: 08G20G4-24 | E37: ExtremeWorks | F37: ResponsPLS NBDAHR | G37: $1,151.00 | H37: 12% | I37: $1,012.88 | J37: EW ResponsePLS NBD AHR-H30005 | K37: EW ResponsePLS NBD AHR-H30005 | L37: Hardware
A38: 98000-H30005 | B38: 98000 | C38: H30005 | D38: 08G20G4-24 | E38: ExtremeWorks Premier | F38: TAC & Software | G38: $43.00 | H38: 12% | I38: $37.84 | J38: EWP Premier TAC OS H30005 | K38: EWP Premier TAC OS H30005 | L38: Hardware
A39: 98004-H30005 | B39: 98004 | C39: H30005 | D39: 08G20G4-24 | E39: ExtremeWorks Premier | F39: NBD AHR | G39: $53.00 | H39: 12% | I39: $46.64 | J39: EWP Premier NBD AHR H30005 | K39: EWP Premier NBD AHR H30005 | L39: Hardware
A40: 98504-H30005 | B40: 98504 | C40: H30005 | D40: 08G20G4-24 | E40: ExtremeWorks Premier Plus | F40: Managed Service NBD AHR | G40: $1,153.00 | H40: 12% | I40: $1,014.64 | J40: EWPP PremierPLS NBD AHR H30005 | K40: EWPP PremierPLS NBD AHR H30005 | L40: Hardware
A41: 95504-H30006 | B41: 95504 | C41: H30006 | D41: 08G20G4-24P | E41: Partner Works | F41: NBD AHR | G41: $78.00 | H41: 12% | I41: $68.64 | J41: PW NBD AHR | K41: PW NBD AHR | L41: Hardware
A42: 95600-H30006 | B42: 95600 | C42: H30006 | D42: 08G20G4-24P | E42: Partner Works Plus | F42: TAC & Software | G42: $57.00 | H42: 12% | I42: $50.16 | J42: PWP Software and TAC | K42: PWP Software and TAC | L42: Hardware
A43: 95604-H30006 | B43: 95604 | C43: H30006 | D43: 08G20G4-24P | E43: Partner Works Plus | F43: NBD AHR | G43: $78.00 | H43: 12% | I43: $68.64 | J43: PWP NBD AHR | K43: PWP NBD AHR | L43: Hardware
A44: 97000-H30006 | B44: 97000 | C44: H30006 | D44: 08G20G4-24P | E44: ExtremeWorks | F44: TAC & Software | G44: $57.00 | H44: 12% | I44: $50.16 | J44: EW Software and TAC | K44: EW Software and TAC | L44: Hardware
A45: 97004-H30006 | B45: 97004 | C45: H30006 | D45: 08G20G4-24P | E45: ExtremeWorks | F45: NBD AHR | G45: $78.00 | H45: 12% | I45: $68.64 | J45: EW NBD AHR | K45: EW NBD AHR | L45: Hardware
A46: 97304-H30006 | B46: 97304 | C46: H30006 | D46: 08G20G4-24P | E46: ExtremeWorks | F46: E-Rate(US ONLY) | G46: $21.00 | H46: 12% | I46: $18.48 | J46: EW Edu NBD PartOnly-H30006 | K46: EW Edu NBD PartOnly-H30006 | L46: Hardware
A47: 97404-H30006 | B47: 97404 | C47: H30006 | D47: 08G20G4-24P | E47: ExtremeWorks | F47: MonitorPLS NBDAHR | G47: $713.00 | H47: 12% | I47: $627.44 | J47: EW MonitorPLS NBD AHR-H30006 | K47: EW MonitorPLS NBD AHR-H30006 | L47: Hardware
A48: 97504-H30006 | B48: 97504 | C48: H30006 | D48: 08G20G4-24P | E48: ExtremeWorks | F48: ResponsPLS NBDAHR | G48: $1,194.00 | H48: 12% | I48: $1,050.72 | J48: EW ResponsePLS NBD AHR-H30006 | K48: EW ResponsePLS NBD AHR-H30006 | L48: Hardware
A49: 98000-H30006 | B49: 98000 | C49: H30006 | D49: 08G20G4-24P | E49: ExtremeWorks Premier | F49: TAC & Software | G49: $81.00 | H49: 12% | I49: $71.28 | J49: EWP Premier TAC OS H30006 | K49: EWP Premier TAC OS H30006 | L49: Hardware
A50: 98004-H30006 | B50: 98004 | C50: H30006 | D50: 08G20G4-24P | E50: ExtremeWorks Premier | F50: NBD AHR | G50: $103.00 | H50: 12% | I50: $90.64 | J50: EWP Premier NBD AHR H30006 | K50: EWP Premier NBD AHR H30006 | L50: Hardware
A51: 98504-H30006 | B51: 98504 | C51: H30006 | D51: 08G20G4-24P | E51: ExtremeWorks Premier Plus | F51: Managed Service NBD AHR | G51: $1,203.00 | H51: 12% | I51: $1,058.64 | J51: EWPP PremierPLS NBD AHR H30006 | K51: EWPP PremierPLS NBD AHR H30006 | L51: Hardware
A52: 95504-H30007 | B52: 95504 | C52: H30007 | D52: 08G20G4-48 | E52: Partner Works | F52: NBD AHR | G52: $71.00 | H52: 12% | I52: $62.48 | J52: PW NBD AHR | K52: PW NBD AHR | L52: Hardware
A53: 95600-H30007 | B53: 95600 | C53: H30007 | D53: 08G20G4-48 | E53: Partner Works Plus | F53: TAC & Software | G53: $52.00 | H53: 12% | I53: $45.76 | J53: PWP Software and TAC | K53: PWP Software and TAC | L53: Hardware
A54: 95604-H30007 | B54: 95604 | C54: H30007 | D54: 08G20G4-48 | E54: Partner Works Plus | F54: NBD AHR | G54: $71.00 | H54: 12% | I54: $62.48 | J54: PWP NBD AHR | K54: PWP NBD AHR | L54: Hardware
A55: 97000-H30007 | B55: 97000 | C55: H30007 | D55: 08G20G4-48 | E55: ExtremeWorks | F55: TAC & Software | G55: $52.00 | H55: 12% | I55: $45.76 | J55: EW Software and TAC | K55: EW Software and TAC | L55: Hardware
A56: 97004-H30007 | B56: 97004 | C56: H30007 | D56: 08G20G4-48 | E56: ExtremeWorks | F56: NBD AHR | G56: $71.00 | H56: 12% | I56: $62.48 | J56: EW NBD AHR | K56: EW NBD AHR | L56: Hardware
A57: 97304-H30007 | B57: 97304 | C57: H30007 | D57: 08G20G4-48 | E57: ExtremeWorks | F57: E-Rate(US ONLY) | G57: $19.00 | H57: 12% | I57: $16.72 | J57: EW Edu NBD PartOnly-H30007 | K57: EW Edu NBD PartOnly-H30007 | L57: Hardware
A58: 97404-H30007 | B58: 97404 | C58: H30007 | D58: 08G20G4-48 | E58: ExtremeWorks | F58: MonitorPLS NBDAHR | G58: $706.00 | H58: 12% | I58: $621.28 | J58: EW MonitorPLS NBD AHR-H30007 | K58: EW MonitorPLS NBD AHR-H30007 | L58: Hardware
A59: 97504-H30007 | B59: 97504 | C59: H30007 | D59: 08G20G4-48 | E59: ExtremeWorks | F59: ResponsPLS NBDAHR | G59: $1,188.00 | H59: 12% | I59: $1,045.44 | J59: EW ResponsePLS NBD AHR-H30007 | K59: EW ResponsePLS NBD AHR-H30007 | L59: Hardware
A60: 98000-H30007 | B60: 98000 | C60: H30007 | D60: 08G20G4-48 | E60: ExtremeWorks Premier | F60: TAC & Software | G60: $77.00 | H60: 12% | I60: $67.76 | J60: EWP Premier TAC OS H30007 | K60: EWP Premier TAC OS H30007 | L60: Hardware
A61: 98004-H30007 | B61: 98004 | C61: H30007 | D61: 08G20G4-48 | E61: ExtremeWorks Premier | F61: NBD AHR | G61: $96.00 | H61: 12% | I61: $84.48 | J61: EWP Premier NBD AHR H30007 | K61: EWP Premier NBD AHR H30007 | L61: Hardware
A62: 98504-H30007 | B62: 98504 | C62: H30007 | D62: 08G20G4-48 | E62: ExtremeWorks Premier Plus | F62: Managed Service NBD AHR | G62: $1,198.00 | H62: 12% | I62: $1,054.24 | J62: EWPP PremierPLS NBD AHR H30007 | K62: EWPP PremierPLS NBD AHR H30007 | L62: Hardware
A63: 95504-H30008 | B63: 95504 | C63: H30008 | D63: 08G20G4-48P | E63: Partner Works | F63: NBD AHR | G63: $138.00 | H63: 12% | I63: $121.44 | J63: PW NBD AHR | K63: PW NBD AHR | L63: Hardware
A64: 95600-H30008 | B64: 95600 | C64: H30008 | D64: 08G20G4-48P | E64: Partner Works Plus | F64: TAC & Software | G64: $96.00 | H64: 12% | I64: $84.48 | J64: PWP Software and TAC | K64: PWP Software and TAC | L64: Hardware
A65: 95604-H30008 | B65: 95604 | C65: H30008 | D65: 08G20G4-48P | E65: Partner Works Plus | F65: NBD AHR | G65: $138.00 | H65: 12% | I65: $121.44 | J65: PWP NBD AHR | K65: PWP NBD AHR | L65: Hardware
A66: 97000-H30008 | B66: 97000 | C66: H30008 | D66: 08G20G4-48P | E66: ExtremeWorks | F66: TAC & Software | G66: $96.00 | H66: 12% | I66: $84.48 | J66: EW Software and TAC | K66: EW Software and TAC | L66: Hardware
A67: 97004-H30008 | B67: 97004 | C67: H30008 | D67: 08G20G4-48P | E67: ExtremeWorks | F67: NBD AHR | G67: $138.00 | H67: 12% | I67: $121.44 | J67: EW NBD AHR | K67: EW NBD AHR | L67: Hardware
A68: 97304-H30008 | B68: 97304 | C68: H30008 | D68: 08G20G4-48P | E68: ExtremeWorks | F68: E-Rate(US ONLY) | G68: $42.00 | H68: 12% | I68: $36.96 | J68: EW Edu NBD PartOnly-H30008 | K68: EW Edu NBD PartOnly-H30008 | L68: Hardware
A69: 97404-H30008 | B69: 97404 | C69: H30008 | D69: 08G20G4-48P | E69: ExtremeWorks | F69: MonitorPLS NBDAHR | G69: $775.00 | H69: 12% | I69: $682.00 | J69: EW MonitorPLS NBD AHR-H30008 | K69: EW MonitorPLS NBD AHR-H30008 | L69: Hardware
A70: 97504-H30008 | B70: 97504 | C70: H30008 | D70: 08G20G4-48P | E70: ExtremeWorks | F70: ResponsPLS NBDAHR | G70: $1,249.00 | H70: 12% | I70: $1,099.12 | J70: EW ResponsePLS NBD AHR-H30008 | K70: EW ResponsePLS NBD AHR-H30008 | L70: Hardware
A71: 98000-H30008 | B71: 98000 | C71: H30008 | D71: 08G20G4-48P | E71: ExtremeWorks Premier | F71: TAC & Software | G71: $141.00 | H71: 12% | I71: $124.08 | J71: EWP Premier TAC OS H30008 | K71: EWP Premier TAC OS H30008 | L71: Hardware
A72: 98004-H30008 | B72: 98004 | C72: H30008 | D72: 08G20G4-48P | E72: ExtremeWorks Premier | F72: NBD AHR | G72: $180.00 | H72: 12% | I72: $158.40 | J72: EWP Premier NBD AHR H30008 | K72: EWP Premier NBD AHR H30008 | L72: Hardware
A73: 98504-H30008 | B73: 98504 | C73: H30008 | D73: 08G20G4-48P | E73: ExtremeWorks Premier Plus | F73: Managed Service NBD AHR | G73: $1,280.00 | H73: 12% | I73: =G73-(G73*H73) -> $1,126.40 | J73: EWPP PremierPLS NBD AHR H30008 | K73: EWPP PremierPLS NBD AHR H30008 | L73: Hardware
A74: 95504-H30009 | B74: 95504 | C74: H30009 | D74: 08H20G4-24 | E74: Partner Works | F74: NBD AHR | G74: $33.00 | H74: 12% | I74: $29.04 | J74: PW NBD AHR | K74: PW NBD AHR | L74: Hardware
A75: 95600-H30009 | B75: 95600 | C75: H30009 | D75: 08H20G4-24 | E75: Partner Works Plus | F75: TAC & Software | G75: $26.00 | H75: 12% | I75: $22.88 | J75: PWP Software and TAC | K75: PWP Software and TAC | L75: Hardware
A76: 95604-H30009 | B76: 95604 | C76: H30009 | D76: 08H20G4-24 | E76: Partner Works Plus | F76: NBD AHR | G76: $33.00 | H76: 12% | I76: $29.04 | J76: PWP NBD AHR | K76: PWP NBD AHR | L76: Hardware
A77: 97000-H30009 | B77: 97000 | C77: H30009 | D77: 08H20G4-24 | E77: ExtremeWorks | F77: TAC & Software | G77: $26.00 | H77: 12% | I77: $22.88 | J77: EW Software and TAC | K77: EW Software and TAC | L77: Hardware
A78: 97004-H30009 | B78: 97004 | C78: H30009 | D78: 08H20G4-24 | E78: ExtremeWorks | F78: NBD AHR | G78: $33.00 | H78: 12% | I78: $29.04 | J78: EW NBD AHR | K78: EW NBD AHR | L78: Hardware
A79: 97304-H30009 | B79: 97304 | C79: H30009 | D79: 08H20G4-24 | E79: ExtremeWorks | F79: E-Rate(US ONLY) | G79: $7.00 | H79: 12% | I79: $6.16 | J79: EW Edu NBD PartOnly-H30009 | K79: EW Edu NBD PartOnly-H30009 | L79: Hardware
A80: 97404-H30009 | B80: 97404 | C80: H30009 | D80: 08H20G4-24 | E80: ExtremeWorks | F80: MonitorPLS NBDAHR | G80: $670.00 | H80: 12% | I80: $589.60 | J80: EW MonitorPLS NBD AHR-H30009 | K80: EW MonitorPLS NBD AHR-H30009 | L80: Hardware
A81: 97504-H30009 | B81: 97504 | C81: H30009 | D81: 08H20G4-24 | E81: ExtremeWorks | F81: ResponsPLS NBDAHR | G81: $1,144.00 | H81: 12% | I81: $1,006.72 | J81: EW ResponsePLS NBD AHR-H30009 | K81: EW ResponsePLS NBD AHR-H30009 | L81: Hardware
A82: 98000-H30009 | B82: 98000 | C82: H30009 | D82: 08H20G4-24 | E82: ExtremeWorks Premier | F82: TAC & Software | G82: $37.00 | H82: 12% | I82: $32.56 | J82: EWP Premier TAC OS H30009 | K82: EWP Premier TAC OS H30009 | L82: Hardware
A83: 98004-H30009 | B83: 98004 | C83: H30009 | D83: 08H20G4-24 | E83: ExtremeWorks Premier | F83: NBD AHR | G83: $45.00 | H83: 12% | I83: $39.60 | J83: EWP Premier NBD AHR H30009 | K83: EWP Premier NBD AHR H30009 | L83: Hardware
A84: 98504-H30009 | B84: 98504 | C84: H30009 | D84: 08H20G4-24 | E84: ExtremeWorks Premier Plus | F84: Managed Service NBD AHR | G84: $1,147.00 | H84: 12% | I84: $1,009.36 | J84: EWPP PremierPLS NBD AHR H30009 | K84: EWPP PremierPLS NBD AHR H30009 | L84: Hardware
A85: 95504-H30010 | B85: 95504 | C85: H30010 | D85: 08H20G4-24P | E85: Partner Works | F85: NBD AHR | G85: $66.00 | H85: 12% | I85: $58.08 | J85: PW NBD AHR | K85: PW NBD AHR | L85: Hardware
A86: 95600-H30010 | B86: 95600 | C86: H30010 | D86: 08H20G4-24P | E86: Partner Works Plus | F86: TAC & Software | G86: $47.00 | H86: 12% | I86: $41.36 | J86: PWP Software and TAC | K86: PWP Software and TAC | L86: Hardware
A87: 95604-H30010 | B87: 95604 | C87: H30010 | D87: 08H20G4-24P | E87: Partner Works Plus | F87: NBD AHR | G87: $66.00 | H87: 12% | I87: $58.08 | J87: PWP NBD AHR | K87: PWP NBD AHR | L87: Hardware
A88: 97000-H30010 | B88: 97000 | C88: H30010 | D88: 08H20G4-24P | E88: ExtremeWorks | F88: TAC & Software | G88: $47.00 | H88: 12% | I88: $41.36 | J88: EW Software and TAC | K88: EW Software and TAC | L88: Hardware
A89: 97004-H30010 | B89: 97004 | C89: H30010 | D89: 08H20G4-24P | E89: ExtremeWorks | F89: NBD AHR | G89: $66.00 | H89: 12% | I89: $58.08 | J89: EW NBD AHR | K89: EW NBD AHR | L89: Hardware
A90: 97304-H30010 | B90: 97304 | C90: H30010 | D90: 08H20G4-24P | E90: ExtremeWorks | F90: E-Rate(US ONLY) | G90: $19.00 | H90: 12% | I90: $16.72 | J90: EW Edu NBD PartOnly-H30010 | K90: EW Edu NBD PartOnly-H30010 | L90: Hardware
A91: 97404-H30010 | B91: 97404 | C91: H30010 | D91: 08H20G4-24P | E91: ExtremeWorks | F91: MonitorPLS NBDAHR | G91: $700.00 | H91: 12% | I91: $616.00 | J91: EW MonitorPLS NBD AHR-H30010 | K91: EW MonitorPLS NBD AHR-H30010 | L91: Hardware
A92: 97504-H30010 | B92: 97504 | C92: H30010 | D92: 08H20G4-24P | E92: ExtremeWorks | F92: ResponsPLS NBDAHR | G92: $1,175.00 | H92: 12% | I92: $1,034.00 | J92: EW ResponsePLS NBD AHR-H30010 | K92: EW ResponsePLS NBD AHR-H30010 | L92: Hardware
A93: 98000-H30010 | B93: 98000 | C93: H30010 | D93: 08H20G4-24P | E93: ExtremeWorks Premier | F93: TAC & Software | G93: $66.00 | H93: 12% | I93: $58.08 | J93: EWP Premier TAC OS H30010 | K93: EWP Premier TAC OS H30010 | L93: Hardware
A94: 98004-H30010 | B94: 98004 | C94: H30010 | D94: 08H20G4-24P | E94: ExtremeWorks Premier | F94: NBD AHR | G94: $83.00 | H94: 12% | I94: $73.04 | J94: EWP Premier NBD AHR H30010 | K94: EWP Premier NBD AHR H30010 | L94: Hardware
A95: 98504-H30010 | B95: 98504 | C95: H30010 | D95: 08H20G4-24P | E95: ExtremeWorks Premier Plus | F95: Managed Service NBD AHR | G95: $1,185.00 | H95: 12% | I95: $1,042.80 | J95: EWPP PremierPLS NBD AHR H30010 | K95: EWPP PremierPLS NBD AHR H30010 | L95: Hardware
A96: 95504-H30011 | B96: 95504 | C96: H30011 | D96: 08H20G4-48 | E96: Partner Works | F96: NBD AHR | G96: $53.00 | H96: 12% | I96: $46.64 | J96: PW NBD AHR | K96: PW NBD AHR | L96: Hardware
A97: 95600-H30011 | B97: 95600 | C97: H30011 | D97: 08H20G4-48 | E97: Partner Works Plus | F97: TAC & Software | G97: $40.00 | H97: 12% | I97: $35.20 | J97: PWP Software and TAC | K97: PWP Software and TAC | L97: Hardware
A98: 95604-H30011 | B98: 95604 | C98: H30011 | D98: 08H20G4-48 | E98: Partner Works Plus | F98: NBD AHR | G98: $53.00 | H98: 12% | I98: $46.64 | J98: PWP NBD AHR | K98: PWP NBD AHR | L98: Hardware
A99: 97000-H30011 | B99: 97000 | C99: H30011 | D99: 08H20G4-48 | E99: ExtremeWorks | F99: TAC & Software | G99: $40.00 | H99: 12% | I99: $35.20 | J99: EW Software and TAC | K99: EW Software and TAC | L99: Hardware
A100: 97004-H30011 | B100: 97004 | C100: H30011 | D100: 08H20G4-48 | E100: ExtremeWorks | F100: NBD AHR | G100: $53.00 | H100: 12% | I100: $46.64 | J100: EW NBD AHR | K100: EW NBD AHR | L100: Hardware
A101: 97304-H30011 | B101: 97304 | C101: H30011 | D101: 08H20G4-48 | E101: ExtremeWorks | F101: E-Rate(US ONLY) | G101: $13.00 | H101: 12% | I101: $11.44 | J101: EW Edu NBD PartOnly-H30011 | K101: EW Edu NBD PartOnly-H30011 | L101: Hardware
A102: 97404-H30011 | B102: 97404 | C102: H30011 | D102: 08H20G4-48 | E102: ExtremeWorks | F102: MonitorPLS NBDAHR | G102: $688.00 | H102: 12% | I102: $605.44 | J102: EW MonitorPLS NBD AHR-H30011 | K102: EW MonitorPLS NBD AHR-H30011 | L102: Hardware
A103: 97504-H30011 | B103: 97504 | C103: H30011 | D103: 08H20G4-48 | E103: ExtremeWorks | F103: ResponsPLS NBDAHR | G103: $1,163.00 | H103: 12% | I103: $1,023.44 | J103: EW ResponsePLS NBD AHR-H30011 | K103: EW ResponsePLS NBD AHR-H30011 | L103: Hardware
A104: 98000-H30011 | B104: 98000 | C104: H30011 | D104: 08H20G4-48 | E104: ExtremeWorks Premier | F104: TAC & Software | G104: $58.00 | H104: 12% | I104: $51.04 | J104: EWP Premier TAC OS H30011 | K104: EWP Premier TAC OS H30011 | L104: Hardware
A105: 98004-H30011 | B105: 98004 | C105: H30011 | D105: 08H20G4-48 | E105: ExtremeWorks Premier | F105: NBD AHR | G105: $70.00 | H105: 12% | I105: $61.60 | J105: EWP Premier NBD AHR H30011 | K105: EWP Premier NBD AHR H30011 | L105: Hardware
A106: 98504-H30011 | B106: 98504 | C106: H30011 | D106: 08H20G4-48 | E106: ExtremeWorks Premier Plus | F106: Managed Service NBD AHR | G106: $1,173.00 | H106: 12% | I106: $1,032.24 | J106: EWPP PremierPLS NBD AHR H30011 | K106: EWPP PremierPLS NBD AHR H30011 | L106: Hardware
A107: 95504-H30012 | B107: 95504 | C107: H30012 | D107: 08H20G4-48P | E107: Partner Works | F107: NBD AHR | G107: $91.00 | H107: 12% | I107: $80.08 | J107: PW NBD AHR | K107: PW NBD AHR | L107: Hardware
A108: 95600-H30012 | B108: 95600 | C108: H30012 | D108: 08H20G4-48P | E108: Partner Works Plus | F108: TAC & Software | G108: $66.00 | H108: 12% | I108: $58.08 | J108: PWP Software and TAC | K108: PWP Software and TAC | L108: Hardware
A109: 95604-H30012 | B109: 95604 | C109: H30012 | D109: 08H20G4-48P | E109: Partner Works Plus | F109: NBD AHR | G109: $91.00 | H109: 12% | I109: $80.08 | J109: PWP NBD AHR | K109: PWP NBD AHR | L109: Hardware
A110: 97000-H30012 | B110: 97000 | C110: H30012 | D110: 08H20G4-48P | E110: ExtremeWorks | F110: TAC & Software | G110: $66.00 | H110: 12% | I110: $58.08 | J110: EW Software and TAC | K110: EW Software and TAC | L110: Hardware
A111: 97004-H30012 | B111: 97004 | C111: H30012 | D111: 08H20G4-48P | E111: ExtremeWorks | F111: NBD AHR | G111: $91.00 | H111: 12% | I111: $80.08 | J111: EW NBD AHR | K111: EW NBD AHR | L111: Hardware
A112: 97304-H30012 | B112: 97304 | C112: H30012 | D112: 08H20G4-48P | E112: ExtremeWorks | F112: E-Rate(US ONLY) | G112: $25.00 | H112: 12% | I112: $22.00 | J112: EW Edu NBD PartOnly-H30012 | K112: EW Edu NBD PartOnly-H30012 | L112: Hardware
A113: 97404-H30012 | B113: 97404 | C113: H30012 | D113: 08H20G4-48P | E113: ExtremeWorks | F113: MonitorPLS NBDAHR | G113: $725.00 | H113: 12% | I113: $638.00 | J113: EW MonitorPLS NBD AHR-H30012 | K113: EW MonitorPLS NBD AHR-H30012 | L113: Hardware
A114: 97504-H30012 | B114: 97504 | C114: H30012 | D114: 08H20G4-48P | E114: ExtremeWorks | F114: ResponsPLS NBDAHR | G114: $1,205.00 | H114: 12% | I114: $1,060.40 | J114: EW ResponsePLS NBD AHR-H30012 | K114: EW ResponsePLS NBD AHR-H30012 | L114: Hardware
A115: 98000-H30012 | B115: 98000 | C115: H30012 | D115: 08H20G4-48P | E115: ExtremeWorks Premier | F115: TAC & Software | G115: $97.00 | H115: 12% | I115: $85.36 | J115: EWP Premier TAC OS H30012 | K115: EWP Premier TAC OS H30012 | L115: Hardware
A116: 98004-H30012 | B116: 98004 | C116: H30012 | D116: 08H20G4-48P | E116: ExtremeWorks Premier | F116: NBD AHR | G116: $122.00 | H116: 12% | I116: $107.36 | J116: EWP Premier NBD AHR H30012 | K116: EWP Premier NBD AHR H30012 | L116: Hardware
A117: 98504-H30012 | B117: 98504 | C117: H30012 | D117: 08H20G4-48P | E117: ExtremeWorks Premier Plus | F117: Managed Service NBD AHR | G117: $1,223.00 | H117: 12% | I117: $1,076.24 | J117: EWPP PremierPLS NBD AHR H30012 | K117: EWPP PremierPLS NBD AHR H30012 | L117: Hardware
A118: 97004-100G-LR4-QSFP10KM | B118: 97004 | C118: 100G-LR4-QSFP10KM | D118: 100G-LR4-QSFP10KM | E118: ExtremeWorks | F118: NBD AHR | G118: $2,190.00 | H118: 12% | I118: $1,927.20 | J118: EW NBD AHR 100G-LR4-QSFP10KM | K118: EW NBD AHR 100G-LR4-QSFP10KM | L118: Hardware
A119: 95504-ZR-XFP | B119: 95504 | C119: ZR-XFP | D119: 10125 | E119: Partner Works | F119: NBD AHR | G119: $1,306.00 | H119: 12% | I119: $1,149.28 | J119: PW NBD AHR -ZR-XFP | K119: PW NBD AHR -ZR-XFP | L119: Hardware
A120: 95507-ZR-XFP | B120: 95507 | C120: ZR-XFP | D120: 10125 | E120: Partner Works | F120: 4 hr AHR | G120: $1,825.00 | H120: 12% | I120: $1,606.00 | J120: PW 4HR AHR -ZR-XFP | K120: PW 4HR AHR -ZR-XFP | L120: Hardware
A121: 95508-ZR-XFP | B121: 95508 | C121: ZR-XFP | D121: 10125 | E121: Partner Works | F121: 4 hr Onsite | G121: $2,279.00 | H121: 12% | I121: $2,005.52 | J121: PW 4HR ON-SITE -ZR-XFP | K121: PW 4HR ON-SITE -ZR-XFP | L121: Hardware
A122: 95511-ZR-XFP | B122: 95511 | C122: ZR-XFP | D122: 10125 | E122: Partner Works | F122: NBD Onsite | G122: $1,564.00 | H122: 12% | I122: $1,376.32 | J122: PW NBD ON-SITE -ZR-XFP | K122: PW NBD ON-SITE -ZR-XFP | L122: Hardware
A123: 95600-ZR-XFP | B123: 95600 | C123: ZR-XFP | D123: 10125 | E123: Partner Works Plus | F123: TAC & Software | G123: $858.00 | H123: 12% | I123: $755.04 | J123: PWP TAC OS -ZR-XFP | K123: PWP TAC OS -ZR-XFP | L123: Hardware
A124: 95604-ZR-XFP | B124: 95604 | C124: ZR-XFP | D124: 10125 | E124: Partner Works Plus | F124: NBD AHR | G124: $1,306.00 | H124: 12% | I124: $1,149.28 | J124: PWP NBD AHR -ZR-XFP | K124: PWP NBD AHR -ZR-XFP | L124: Hardware
A125: 97000-ZR-XFP | B125: 97000 | C125: ZR-XFP | D125: 10125 | E125: ExtremeWorks | F125: TAC & Software | G125: $858.00 | H125: 12% | I125: $755.04 | J125: EW TAC OS -ZR-XFP | K125: EW TAC OS -ZR-XFP | L125: Hardware
A126: 97004-ZR-XFP | B126: 97004 | C126: ZR-XFP | D126: 10125 | E126: ExtremeWorks | F126: NBD AHR | G126: $1,306.00 | H126: 12% | I126: $1,149.28 | J126: EW NBD AHR -ZR-XFP | K126: EW NBD AHR -ZR-XFP | L126: Hardware
A127: 97007-ZR-XFP | B127: 97007 | C127: ZR-XFP | D127: 10125 | E127: ExtremeWorks | F127: 4 hr AHR | G127: $1,825.00 | H127: 12% | I127: $1,606.00 | J127: EW 4HR AHR -ZR-XFP | K127: EW 4HR AHR -ZR-XFP | L127: Hardware
A128: 97008-ZR-XFP | B128: 97008 | C128: ZR-XFP | D128: 10125 | E128: ExtremeWorks | F128: 4 hr Onsite | G128: $2,279.00 | H128: 12% | I128: $2,005.52 | J128: EW 4HR ON-SITE -ZR-XFP | K128: EW 4HR ON-SITE -ZR-XFP | L128: Hardware
A129: 97011-ZR-XFP | B129: 97011 | C129: ZR-XFP | D129: 10125 | E129: ExtremeWorks | F129: NBD Onsite | G129: $1,564.00 | H129: 12% | I129: $1,376.32 | J129: EW NBD ON-SITE -ZR-XFP | K129: EW NBD ON-SITE -ZR-XFP | L129: Hardware
A130: 97304-ZR-XFP | B130: 97304 | C130: ZR-XFP | D130: 10125 | E130: ExtremeWorks | F130: E-Rate(US ONLY) | G130: $448.00 | H130: 12% | I130: $394.24 | J130: EW Edu NBD PartOnly-ZR-XFP | K130: EW Edu NBD PartOnly-ZR-XFP | L130: Hardware
A131: 98000-ZR-XFP | B131: 98000 | C131: ZR-XFP | D131: 10125 | E131: ExtremeWorks Premier | F131: TAC & Software | G131: $1,257.00 | H131: 12% | I131: $1,106.16 | J131: EWP Premier TAC OS ZR-XFP | K131: EWP Premier TAC OS ZR-XFP | L131: Hardware
A132: 98004-ZR-XFP | B132: 98004 | C132: ZR-XFP | D132: 10125 | E132: ExtremeWorks Premier | F132: NBD AHR | G132: $1,682.00 | H132: 12% | I132: $1,480.16 | J132: EWP Premier NBD AHR ZR-XFP | K132: EWP Premier NBD AHR ZR-XFP | L132: Hardware
A133: 98007-ZR-XFP | B133: 98007 | C133: ZR-XFP | D133: 10125 | E133: ExtremeWorks Premier | F133: 4 hr AHR | G133: $2,195.00 | H133: 12% | I133: $1,931.60 | J133: EWP Premier 4HR AHR ZR-XFP | K133: EWP Premier 4HR AHR ZR-XFP | L133: Hardware
A134: 98008-ZR-XFP | B134: 98008 | C134: ZR-XFP | D134: 10125 | E134: ExtremeWorks Premier | F134: 4 hr Onsite | G134: $2,646.00 | H134: 12% | I134: $2,328.48 | J134: EWP Premier 4HR ONSITE ZR-XFP | K134: EWP Premier 4HR ONSITE ZR-XFP | L134: Hardware
A135: 98011-ZR-XFP | B135: 98011 | C135: ZR-XFP | D135: 10125 | E135: ExtremeWorks Premier | F135: NBD Onsite | G135: $1,938.00 | H135: 12% | I135: $1,705.44 | J135: EWP Premier NBD ONSITE ZR-XFP | K135: EWP Premier NBD ONSITE ZR-XFP | L135: Hardware
A136: SECUPLIFT-ZR-XFP | B136: SECUPLIFT | C136: ZR-XFP | D136: 10125 | E136: ExtremeWorks | F136: Other | G136: $177.00 | H136: 12% | I136: $155.76 | J136: EW SECUPLIFT ZR-XFP | K136: EW SECUPLIFT ZR-XFP | L136: Hardware
A137: 95504-10200 | B137: 95504 | C137: 10200 | D137: 10200 | E137: Partner Works | F137: NBD AHR | G137: $1,716.00 | H137: 12% | I137: =G137-(G137*H137) -> $1,510.08 | J137: PW NBD AHR Optics 10200 | K137: PW NBD AHR Optics 10200 | L137: Hardware
A138: 95507-10200 | B138: 95507 | C138: 10200 | D138: 10200 | E138: Partner Works | F138: 4 hr AHR | G138: $2,399.00 | H138: 12% | I138: $2,111.12 | J138: PW 4HR AHR Optics 10200 | K138: PW 4HR AHR Optics 10200 | L138: Hardware
A139: 95508-10200 | B139: 95508 | C139: 10200 | D139: 10200 | E139: Partner Works | F139: 4 hr Onsite | G139: $2,999.00 | H139: 12% | I139: $2,639.12 | J139: PW 4HR ONSITE Optics 10200 | K139: PW 4HR ONSITE Optics 10200 | L139: Hardware
A140: 95511-10200 | B140: 95511 | C140: 10200 | D140: 10200 | E140: Partner Works | F140: NBD Onsite | G140: $2,055.00 | H140: 12% | I140: $1,808.40 | J140: PW NBD ONSITE Optics 10200 | K140: PW NBD ONSITE Optics 10200 | L140: Hardware
A141: 95600-10200 | B141: 95600 | C141: 10200 | D141: 10200 | E141: Partner Works Plus | F141: TAC & Software | G141: $1,125.00 | H141: 12% | I141: $990.00 | J141: PWP TAC OS Optics 10200 | K141: PWP TAC OS Optics 10200 | L141: Hardware
A142: 95604-10200 | B142: 95604 | C142: 10200 | D142: 10200 | E142: Partner Works Plus | F142: NBD AHR | G142: $1,716.00 | H142: 12% | I142: $1,510.08 | J142: PWP NBD AHR Optics 10200 | K142: PWP NBD AHR Optics 10200 | L142: Hardware
A143: 97000-10200 | B143: 97000 | C143: 10200 | D143: 10200 | E143: ExtremeWorks | F143: TAC & Software | G143: $1,125.00 | H143: 12% | I143: $990.00 | J143: EW TAC OS Optics 10200 | K143: EW TAC OS Optics 10200 | L143: Hardware
A144: 97004-10200 | B144: 97004 | C144: 10200 | D144: 10200 | E144: ExtremeWorks | F144: NBD AHR | G144: $1,716.00 | H144: 12% | I144: $1,510.08 | J144: EW NBD AHR Optics 10200 | K144: EW NBD AHR Optics 10200 | L144: Hardware
A145: 97007-10200 | B145: 97007 | C145: 10200 | D145: 10200 | E145: ExtremeWorks | F145: 4 hr AHR | G145: $2,399.00 | H145: 12% | I145: $2,111.12 | J145: EW 4HR AHR Optics 10200 | K145: EW 4HR AHR Optics 10200 | L145: Hardware
A146: 97008-10200 | B146: 97008 | C146: 10200 | D146: 10200 | E146: ExtremeWorks | F146: 4 hr Onsite | G146: $2,999.00 | H146: 12% | I146: $2,639.12 | J146: EW 4HR ONSITE Optics 10200 | K146: EW 4HR ONSITE Optics 10200 | L146: Hardware
A147: 97011-10200 | B147: 97011 | C147: 10200 | D147: 10200 | E147: ExtremeWorks | F147: NBD Onsite | G147: $2,055.00 | H147: 12% | I147: $1,808.40 | J147: EW NBD ONSITE Optics 10200 | K147: EW NBD ONSITE Optics 10200 | L147: Hardware
A148: 97304-10200 | B148: 97304 | C148: 10200 | D148: 10200 | E148: ExtremeWorks | F148: E-Rate(US ONLY) | G148: $591.00 | H148: 12% | I148: $520.08 | J148: EW Edu NBD PartOnly-10200 | K148: EW Edu NBD PartOnly-10200 | L148: Hardware
A149: 98000-10200 | B149: 98000 | C149: 10200 | D149: 10200 | E149: ExtremeWorks Premier | F149: TAC & Software | G149: $1,644.00 | H149: 12% | I149: $1,446.72 | J149: EWP Premier TAC OS 10200 | K149: EWP Premier TAC OS 10200 | L149: Hardware
A150: 98004-10200 | B150: 98004 | C150: 10200 | D150: 10200 | E150: ExtremeWorks Premier | F150: NBD AHR | G150: $2,212.00 | H150: 12% | I150: $1,946.56 | J150: EWP Premier NBD AHR 10200 | K150: EWP Premier NBD AHR 10200 | L150: Hardware
A151: 98007-10200 | B151: 98007 | C151: 10200 | D151: 10200 | E151: ExtremeWorks Premier | F151: 4 hr AHR | G151: $2,886.00 | H151: 12% | I151: $2,539.68 | J151: EWP Premier 4HR AHR 10200 | K151: EWP Premier 4HR AHR 10200 | L151: Hardware
A152: 98008-10200 | B152: 98008 | C152: 10200 | D152: 10200 | E152: ExtremeWorks Premier | F152: 4 hr Onsite | G152: $3,482.00 | H152: 12% | I152: $3,064.16 | J152: EWP Premier 4HR ONSITE 10200 | K152: EWP Premier 4HR ONSITE 10200 | L152: Hardware
A153: 98011-10200 | B153: 98011 | C153: 10200 | D153: 10200 | E153: ExtremeWorks Premier | F153: NBD Onsite | G153: $2,546.00 | H153: 12% | I153: $2,240.48 | J153: EWP Premier NBD ONSITE 10200 | K153: EWP Premier NBD ONSITE 10200 | L153: Hardware
A154: SECUPLIFT-10200 | B154: SECUPLIFT | C154: 10200 | D154: 10200 | E154: ExtremeWorks | F154: Other | G154: $353.00 | H154: 12% | I154: $310.64 | J154: EW SECUPLIFT 10200 | K154: EW SECUPLIFT 10200 | L154: Hardware
A155: 95504-10320 | B155: 95504 | C155: 10320 | D155: 10320 | E155: Partner Works | F155: NBD AHR | G155: $1,977.00 | H155: 12% | I155: $1,739.76 | J155: PW NBD AHR Optics 10320 | K155: PW NBD AHR Optics 10320 | L155: Hardware
A156: 95507-10320 | B156: 95507 | C156: 10320 | D156: 10320 | E156: Partner Works | F156: 4 hr AHR | G156: $2,772.00 | H156: 12% | I156: $2,439.36 | J156: PW 4HR AHR Optics 10320 | K156: PW 4HR AHR Optics 10320 | L156: Hardware
A157: 95508-10320 | B157: 95508 | C157: 10320 | D157: 10320 | E157: Partner Works | F157: 4 hr Onsite | G157: $3,459.00 | H157: 12% | I157: $3,043.92 | J157: PW 4HR ONSITE Optics 10320 | K157: PW 4HR ONSITE Optics 10320 | L157: Hardware
A158: 95511-10320 | B158: 95511 | C158: 10320 | D158: 10320 | E158: Partner Works | F158: NBD Onsite | G158: $2,374.00 | H158: 12% | I158: $2,089.12 | J158: PW NBD ONSITE Optics 10320 | K158: PW NBD ONSITE Optics 10320 | L158: Hardware
A159: 95600-10320 | B159: 95600 | C159: 10320 | D159: 10320 | E159: Partner Works Plus | F159: TAC & Software | G159: $1,291.00 | H159: 12% | I159: $1,136.08 | J159: PWP TAC OS Optics 10320 | K159: PWP TAC OS Optics 10320 | L159: Hardware
A160: 95604-10320 | B160: 95604 | C160: 10320 | D160: 10320 | E160: Partner Works Plus | F160: NBD AHR | G160: $1,977.00 | H160: 12% | I160: $1,739.76 | J160: PWP NBD AHR Optics 10320 | K160: PWP NBD AHR Optics 10320 | L160: Hardware
A161: 97000-10320 | B161: 97000 | C161: 10320 | D161: 10320 | E161: ExtremeWorks | F161: TAC & Software | G161: $1,291.00 | H161: 12% | I161: $1,136.08 | J161: EW TAC OS Optics 10320 | K161: EW TAC OS Optics 10320 | L161: Hardware
A162: 97004-10320 | B162: 97004 | C162: 10320 | D162: 10320 | E162: ExtremeWorks | F162: NBD AHR | G162: $1,977.00 | H162: 12% | I162: $1,739.76 | J162: EW NBD AHR Optics 10320 | K162: EW NBD AHR Optics 10320 | L162: Hardware
A163: 97007-10320 | B163: 97007 | C163: 10320 | D163: 10320 | E163: ExtremeWorks | F163: 4 hr AHR | G163: $2,772.00 | H163: 12% | I163: $2,439.36 | J163: EW 4HR AHR Optics 10320 | K163: EW 4HR AHR Optics 10320 | L163: Hardware
A164: 97008-10320 | B164: 97008 | C164: 10320 | D164: 10320 | E164: ExtremeWorks | F164: 4 hr Onsite | G164: $3,459.00 | H164: 12% | I164: $3,043.92 | J164: EW 4HR ONSITE Optics 10320 | K164: EW 4HR ONSITE Optics 10320 | L164: Hardware
A165: 97011-10320 | B165: 97011 | C165: 10320 | D165: 10320 | E165: ExtremeWorks | F165: NBD Onsite | G165: $2,374.00 | H165: 12% | I165: $2,089.12 | J165: EW NBD ONSITE Optics 10320 | K165: EW NBD ONSITE Optics 10320 | L165: Hardware
A166: 97304-10320 | B166: 97304 | C166: 10320 | D166: 10320 | E166: ExtremeWorks | F166: E-Rate(US ONLY) | G166: $686.00 | H166: 12% | I166: $603.68 | J166: EW Edu NBD PartOnly-10320 | K166: EW Edu NBD PartOnly-10320 | L166: Hardware
A167: 98000-10320 | B167: 98000 | C167: 10320 | D167: 10320 | E167: ExtremeWorks Premier | F167: TAC & Software | G167: $1,893.00 | H167: 12% | I167: $1,665.84 | J167: EWP Premier TAC OS 10320 | K167: EWP Premier TAC OS 10320 | L167: Hardware
A168: 98004-10320 | B168: 98004 | C168: 10320 | D168: 10320 | E168: ExtremeWorks Premier | F168: NBD AHR | G168: $2,552.00 | H168: 12% | I168: $2,245.76 | J168: EWP Premier NBD AHR 10320 | K168: EWP Premier NBD AHR 10320 | L168: Hardware
A169: 98007-10320 | B169: 98007 | C169: 10320 | D169: 10320 | E169: ExtremeWorks Premier | F169: 4 hr AHR | G169: $3,338.00 | H169: 12% | I169: $2,937.44 | J169: EWP Premier 4HR AHR 10320 | K169: EWP Premier 4HR AHR 10320 | L169: Hardware
A170: 98008-10320 | B170: 98008 | C170: 10320 | D170: 10320 | E170: ExtremeWorks Premier | F170: 4 hr Onsite | G170: $4,018.00 | H170: 12% | I170: $3,535.84 | J170: EWP Premier 4HR ONSITE 10320 | K170: EWP Premier 4HR ONSITE 10320 | L170: Hardware
A171: 98011-10320 | B171: 98011 | C171: 10320 | D171: 10320 | E171: ExtremeWorks Premier | F171: NBD Onsite | G171: $2,944.00 | H171: 12% | I171: $2,590.72 | J171: EWP Premier NBD ONSITE 10320 | K171: EWP Premier NBD ONSITE 10320 | L171: Hardware
A172: SECUPLIFT-10320 | B172: SECUPLIFT | C172: 10320 | D172: 10320 | E172: ExtremeWorks | F172: Other | G172: $177.00 | H172: 12% | I172: $155.76 | J172: EW SECUPLIFT 10320 | K172: EW SECUPLIFT 10320 | L172: Hardware
A173: 95504-10330 | B173: 95504 | C173: 10330 | D173: 10330 | E173: Partner Works | F173: NBD AHR | G173: $4,848.00 | H173: 12% | I173: $4,266.24 | J173: PW NBD AHR 10330 | K173: PW NBD AHR 10330 | L173: Hardware
A174: 95507-10330 | B174: 95507 | C174: 10330 | D174: 10330 | E174: Partner Works | F174: 4 hr AHR | G174: $6,790.00 | H174: 12% | I174: $5,975.20 | J174: PW 4HR AHR 10330 | K174: PW 4HR AHR 10330 | L174: Hardware
A175: 95508-10330 | B175: 95508 | C175: 10330 | D175: 10330 | E175: Partner Works | F175: 4 hr Onsite | G175: $8,488.00 | H175: 12% | I175: $7,469.44 | J175: PW 4HR ONSITE 10330 | K175: PW 4HR ONSITE 10330 | L175: Hardware
A176: 95600-10330 | B176: 95600 | C176: 10330 | D176: 10330 | E176: Partner Works Plus | F176: TAC & Software | G176: $3,172.00 | H176: 12% | I176: $2,791.36 | J176: PWP TAC OS 10330 | K176: PWP TAC OS 10330 | L176: Hardware
A177: 95604-10330 | B177: 95604 | C177: 10330 | D177: 10330 | E177: Partner Works Plus | F177: NBD AHR | G177: $4,848.00 | H177: 12% | I177: $4,266.24 | J177: PWP NBD AHR 10330 | K177: PWP NBD AHR 10330 | L177: Hardware
A178: 97000-10330 | B178: 97000 | C178: 10330 | D178: 10330 | E178: ExtremeWorks | F178: TAC & Software | G178: $3,172.00 | H178: 12% | I178: $2,791.36 | J178: EW TAC OS 10330 | K178: EW TAC OS 10330 | L178: Hardware
A179: 97004-10330 | B179: 97004 | C179: 10330 | D179: 10330 | E179: ExtremeWorks | F179: NBD AHR | G179: $4,848.00 | H179: 12% | I179: $4,266.24 | J179: EW NBD AHR 10330 | K179: EW NBD AHR 10330 | L179: Hardware
A180: 97007-10330 | B180: 97007 | C180: 10330 | D180: 10330 | E180: ExtremeWorks | F180: 4 hr AHR | G180: $6,790.00 | H180: 12% | I180: $5,975.20 | J180: EW 4HR AHR 10330 | K180: EW 4HR AHR 10330 | L180: Hardware
A181: 97008-10330 | B181: 97008 | C181: 10330 | D181: 10330 | E181: ExtremeWorks | F181: 4 hr Onsite | G181: $8,488.00 | H181: 12% | I181: $7,469.44 | J181: EW 4HR ONSITE 10330 | K181: EW 4HR ONSITE 10330 | L181: Hardware
A182: 97304-10330 | B182: 97304 | C182: 10330 | D182: 10330 | E182: ExtremeWorks | F182: E-Rate(US ONLY) | G182: $1,676.00 | H182: 12% | I182: $1,474.88 | J182: EW Edu NBD PartOnly-10330 | K182: EW Edu NBD PartOnly-10330 | L182: Hardware
A183: 98000-10330 | B183: 98000 | C183: 10330 | D183: 10330 | E183: ExtremeWorks Premier | F183: TAC & Software | G183: $4,553.00 | H183: 12% | I183: $4,006.64 | J183: EWP Premier TAC OS 10330 | K183: EWP Premier TAC OS 10330 | L183: Hardware
A184: 98004-10330 | B184: 98004 | C184: 10330 | D184: 10330 | E184: ExtremeWorks Premier | F184: NBD AHR | G184: $6,126.00 | H184: 12% | I184: $5,390.88 | J184: EWP Premier NBD AHR 10330 | K184: EWP Premier NBD AHR 10330 | L184: Hardware
A185: 98007-10330 | B185: 98007 | C185: 10330 | D185: 10330 | E185: ExtremeWorks Premier | F185: 4 hr AHR | G185: $8,009.00 | H185: 12% | I185: $7,047.92 | J185: EWP Premier 4HR AHR 10330 | K185: EWP Premier 4HR AHR 10330 | L185: Hardware
A186: 98008-10330 | B186: 98008 | C186: 10330 | D186: 10330 | E186: ExtremeWorks Premier | F186: 4 hr Onsite | G186: $9,658.00 | H186: 12% | I186: $8,499.04 | J186: EWP Premier 4HR ONSITE 10330 | K186: EWP Premier 4HR ONSITE 10330 | L186: Hardware
A187: 98011-10330 | B187: 98011 | C187: 10330 | D187: 10330 | E187: ExtremeWorks Premier | F187: NBD Onsite | G187: $7,064.00 | H187: 12% | I187: $6,216.32 | J187: EWP Premier NBD ONSITE 10330 | K187: EWP Premier NBD ONSITE 10330 | L187: Hardware
A188: SECUPLIFT-10330 | B188: SECUPLIFT | C188: 10330 | D188: 10330 | E188: ExtremeWorks | F188: Other | G188: $588.00 | H188: 12% | I188: $517.44 | J188: EW SECUPLIFT 10330 | K188: EW SECUPLIFT 10330 | L188: Hardware
A189: 95504-10331 | B189: 95504 | C189: 10331 | D189: 10331 | E189: Partner Works | F189: NBD AHR | G189: $2,237.00 | H189: 12% | I189: $1,968.56 | J189: PW NBD AHR 10331 | K189: PW NBD AHR 10331 | L189: Hardware
A190: 95507-10331 | B190: 95507 | C190: 10331 | D190: 10331 | E190: Partner Works | F190: 4 hr AHR | G190: $3,137.00 | H190: 12% | I190: $2,760.56 | J190: PW 4HR AHR 10331 | K190: PW 4HR AHR 10331 | L190: Hardware
A191: 95508-10331 | B191: 95508 | C191: 10331 | D191: 10331 | E191: Partner Works | F191: 4 hr Onsite | G191: $3,915.00 | H191: 12% | I191: $3,445.20 | J191: PW 4HR ONSITE 10331 | K191: PW 4HR ONSITE 10331 | L191: Hardware
A192: 95600-10331 | B192: 95600 | C192: 10331 | D192: 10331 | E192: Partner Works Plus | F192: TAC & Software | G192: $1,461.00 | H192: 12% | I192: $1,285.68 | J192: PWP TAC OS 10331 | K192: PWP TAC OS 10331 | L192: Hardware
A193: 95604-10331 | B193: 95604 | C193: 10331 | D193: 10331 | E193: Partner Works Plus | F193: NBD AHR | G193: $2,237.00 | H193: 12% | I193: $1,968.56 | J193: PWP NBD AHR 10331 | K193: PWP NBD AHR 10331 | L193: Hardware
A194: 97000-10331 | B194: 97000 | C194: 10331 | D194: 10331 | E194: ExtremeWorks | F194: TAC & Software | G194: $1,461.00 | H194: 12% | I194: $1,285.68 | J194: EW TAC OS 10331 | K194: EW TAC OS 10331 | L194: Hardware
A195: 97004-10331 | B195: 97004 | C195: 10331 | D195: 10331 | E195: ExtremeWorks | F195: NBD AHR | G195: $2,237.00 | H195: 12% | I195: $1,968.56 | J195: EW NBD AHR 10331 | K195: EW NBD AHR 10331 | L195: Hardware
A196: 97007-10331 | B196: 97007 | C196: 10331 | D196: 10331 | E196: ExtremeWorks | F196: 4 hr AHR | G196: $3,137.00 | H196: 12% | I196: $2,760.56 | J196: EW 4HR AHR 10331 | K196: EW 4HR AHR 10331 | L196: Hardware
A197: 97008-10331 | B197: 97008 | C197: 10331 | D197: 10331 | E197: ExtremeWorks | F197: 4 hr Onsite | G197: $3,915.00 | H197: 12% | I197: $3,445.20 | J197: EW 4HR ONSITE 10331 | K197: EW 4HR ONSITE 10331 | L197: Hardware
A198: 97304-10331 | B198: 97304 | C198: 10331 | D198: 10331 | E198: ExtremeWorks | F198: E-Rate(US ONLY) | G198: $776.00 | H198: 12% | I198: $682.88 | J198: EW Edu NBD PartOnly-10331 | K198: EW Edu NBD PartOnly-10331 | L198: Hardware
A199: 98000-10331 | B199: 98000 | C199: 10331 | D199: 10331 | E199: ExtremeWorks Premier | F199: TAC & Software | G199: $2,096.00 | H199: 12% | I199: $1,844.48 | J199: EWP Premier TAC OS 10331 | K199: EWP Premier TAC OS 10331 | L199: Hardware
A200: 98004-10331 | B200: 98004 | C200: 10331 | D200: 10331 | E200: ExtremeWorks Premier | F200: NBD AHR | G200: $2,823.00 | H200: 12% | I200: $2,484.24 | J200: EWP Premier NBD AHR 10331 | K200: EWP Premier NBD AHR 10331 | L200: Hardware
A201: 98007-10331 | B201: 98007 | C201: 10331 | D201: 10331 | E201: ExtremeWorks Premier | F201: 4 hr AHR | G201: $3,699.00 | H201: 12% | I201: =G201-(G201*H201) -> $3,255.12 | J201: EWP Premier 4HR AHR 10331 | K201: EWP Premier 4HR AHR 10331 | L201: Hardware
A202: 98008-10331 | B202: 98008 | C202: 10331 | D202: 10331 | E202: ExtremeWorks Premier | F202: 4 hr Onsite | G202: $4,453.00 | H202: 12% | I202: $3,918.64 | J202: EWP Premier 4HR ONSITE 10331 | K202: EWP Premier 4HR ONSITE 10331 | L202: Hardware
A203: 98011-10331 | B203: 98011 | C203: 10331 | D203: 10331 | E203: ExtremeWorks Premier | F203: NBD Onsite | G203: $3,258.00 | H203: 12% | I203: $2,867.04 | J203: EWP Premier NBD ONSITE 10331 | K203: EWP Premier NBD ONSITE 10331 | L203: Hardware
... 4297 more rows
